Cogmind - Beta 16 @@@ ROGUE MODE // 2025.11.23 @ 18:50:03 // Winter2019/RPGLIKE Player: Rentaro Result: Heading to fleet! Performance ------------- Evolutions (9) 4500 Regions Visited (32) 6400 Robots Destroyed (2481) 12405 Value Destroyed (144779) 144779 Prototype IDs (391) 7820 Alien Tech Used (10) 2000 Bonus (173899) 173899 TOTAL SCORE: 351803 Bonus ------- Triggered High Security 4500 High Alert Combat Kills 89228 Follower Combat Kills 1139 Destroyed Unchained 4000 Network Hubs Disabled 800 Registered with UFD 300 Met Optimus in HQ 500 Triggered Deep Caves Wall 500 Exposed GOLEM Chamber 500 MAIN.C Attacked Warlord 500 Warlord Defense Kills 25228 Met R17 at Cetus 500 Found Hidden Lab 3000 Used Core Reset Matrix 3000 Scanned by Researcher 500 Recovered Sigix Corpse 2000 Destroyed MAIN.C Guards 500 Met MAIN.C 5000 Destroyed MAIN.C Shell 5000 Destroyed MAIN.C 10000 Met Architect 300 Destroyed A8 300 Destroyed A6 400 Destroyed A5 500 Destroyed A4 700 Destroyed A3 800 Destroyed A2 1000 Destroyed Architect 15000 Win 3000 Friendly Fire -4796 Cogmind --------- Core Integrity 702/1750 Matter 295/300 Energy 1288/1290 System Corruption 0% Temperature Cool (5) Movement Flying (20) Location To Fleet Rendezvous Parts ------- > --- POWER (3) -------- Micro Antimatter Reactor Zero-point Reactor > --- PROPULSION (5) --- Diametric Drive Diametric Drive Diametric Drive Diametric Drive Improved Q-thruster > --- UTILITY (13) ----- Assembled Biocell Array Structural Scanner Experimental Signal Interpreter Assembled Combat Suite Experimental Armor Integrity Analyzer Precision Energy Filter Experimental Weapon Cycler Graphene Brace Deep Network Scanner Architect God Chip A Architect God Chip D Improved Corruption Screen > --- WEAPON (5) ------- Hypervelocity Alpha Cannon Hypervelocity Alpha Cannon > --- INVENTORY (6) ---- Zero-point Reactor Diametric Drive High-powered Transdimensional Reconstructor Point Singularity Launcher Sigix Corpse Peak State ------------ > --- POWER ------------ Zero-point Reactor Zero-point Reactor > --- PROPULSION ------- Diametric Drive Diametric Drive Diametric Drive Diametric Drive Diametric Drive > --- UTILITY ---------- Assembled Biocell Array Assembled Suspension Frame Experimental Signal Interpreter Assembled Combat Suite Experimental Armor Integrity Analyzer Precision Energy Filter Advanced Particle Accelerator Experimental Weapon Cycler Nanoactuators Experimental Reaction Control System Graphene Brace Deep Network Scanner Improved Corruption Screen > --- WEAPON ----------- Heavy Quantum Rifle Hypervelocity Alpha Cannon Hypervelocity Alpha Cannon > --- INVENTORY -------- Protomatter Experimental Phase Shifter Transdimensional Reconstructor Hypervelocity Alpha Cannon [Rating: 213] Favorites ----------- Power Light Fission Core Engine Light Ion Engine Power Core Light Fission Core Reactor Zero-point Reactor Propulsion Cooled Cesium-ion Thruster Leg Assembled Alloy Leg Wheel Compact Wheel Flight Unit Cooled Cesium-ion Thruster Utility Structural Scanner Device Structural Scanner Storage Assembled Biocell Array Processor Advanced Signal Interpreter Hackware Hacking Suite Protection Medium Armor Plating Artifact Spacefold Activator Weapon Hypervelocity Alpha Cannon Energy Gun Heavy Particle Gun Energy Cannon Hypervelocity Alpha Cannon Ballistic Gun Heavy Assault Rifle Ballistic Cannon Hypervelocity Gauss Cannon Launcher Rocket Launcher Special Weapon Advanced Remote Datajack Special Melee Weapon Improved Datajack Build | -11 -10 -9 -9 -9 -9 -6 -6 -6 -6 -6 -5 -5 -5 -5 -5 -5 -5 -4 -4 -4 -4 -4 -4 -3 -3 -3 -2 -2 -2 -1 -1 -1 ------- Run | Yrd Mat Mat Sto Rec Scr Fac Low Low Zio Dee Pro Fac Was Fac Upp Upp War Pro Fac Ext Cet Arc Hub Res Arm Lab Res Tes Sec Acc Com Ac0 Slots Evolved 20 | 4 2 5 . . 1 3 . . . . 1 . . 1 . . . . 1 . . . . . . . . . 1 . 1 . Power 2 | . . . . . . . . . . . 1 . . . . . . . . . . . . . . . . . . . 1 . Propulsion 4 | 1 1 2 . . . . . . . . . . . . . . . . . . . . . . . . . . . . . . Utility 12 | 1 1 3 . . 1 3 . . . . . . . 1 . . . . 1 . . . . . . . . . 1 . . . Weapon 2 | 2 . . . . . . . . . . . . . . . . . . . . . . . . . . . . . . . . Parts Attached 214 | 6 7 24 4 . 5 37 2 4 . 13 2 12 . 13 . . 13 . 10 2 . . 2 7 8 1 2 1 10 3 15 11 Power 29 | 1 . 2 . . . 3 . . . 1 . 1 . 1 . . 2 . . 1 . . . . . . 2 . . . 14 1 Engine 4 | 1 . 1 . . . . . . . . . . . . . . . . . . . . . . . . . . . . 2 . Core 7 | . . 1 . . . 3 . . . . . 1 . 1 . . . . . . . . . . . . . . . . 1 . Reactor 18 | . . . . . . . . . . 1 . . . . . . 2 . . 1 . . . . . . 2 . . . 11 1 Propulsion 40 | 2 3 5 1 . . 9 . . . . . 2 . 4 . . 2 . 4 . . . . 3 4 . . . . . . 1 Treads . | . . . . . . . . . . . . . . . . . . . . . . . . . . . . . . . . . Leg . | . . . . . . . . . . . . . . . . . . . . . . . . . . . . . . . . . Wheel 2 | 2 . . . . . . . . . . . . . . . . . . . . . . . . . . . . . . . . Hover . | . . . . . . . . . . . . . . . . . . . . . . . . . . . . . . . . . Flight 38 | . 3 5 1 . . 9 . . . . . 2 . 4 . . 2 . 4 . . . . 3 4 . . . . . . 1 Utility 104 | . 2 9 . . 5 15 2 4 . 10 2 7 . 7 . . 9 . 6 1 . . 2 3 4 1 . . 10 . . 5 Device 55 | . 1 3 . . 1 8 . 4 . 5 2 3 . 3 . . 4 . 6 . . . 2 1 4 . . . 6 . . 2 Storage 3 | . . . . . 2 . . . . 1 . . . . . . . . . . . . . . . . . . . . . . Processor 23 | . 1 2 . . 2 5 2 . . . . 1 . 2 . . 3 . . . . . . 2 . . . . 3 . . . Hackware 12 | . . . . . . 2 . . . . . 3 . 2 . . 1 . . 1 . . . . . 1 . . . . . 2 Protection 10 | . . 4 . . . . . . . 4 . . . . . . 1 . . . . . . . . . . . . . . 1 Artifact 1 | . . . . . . . . . . . . . . . . . . . . . . . . . . . . . 1 . . . Weapon 41 | 3 2 8 3 . . 10 . . . 2 . 2 . 1 . . . . . . . . . 1 . . . 1 . 3 1 4 Energy Gun 14 | 1 . 4 2 . . 2 . . . 2 . . . . . . . . . . . . . 1 . . . 1 . . . 1 Energy Cannon 12 | . . . 1 . . 6 . . . . . 2 . 1 . . . . . . . . . . . . . . . 2 . . Ballistic Gun 7 | 2 1 4 . . . . . . . . . . . . . . . . . . . . . . . . . . . . . . Ballistic Cannon 1 | . . . . . . 1 . . . . . . . . . . . . . . . . . . . . . . . . . . Launcher 4 | . 1 . . . . . . . . . . . . . . . . . . . . . . . . . . . . . . 3 Special Weapon 2 | . . . . . . . . . . . . . . . . . . . . . . . . . . . . . . 1 1 . Impact Weapon . | . . . . . . . . . . . . . . . . . . . . . . . . . . . . . . . . . Slashing Weapon . | . . . . . . . . . . . . . . . . . . . . . . . . . . . . . . . . . Piercing Weapon . | . . . . . . . . . . . . . . . . . . . . . . . . . . . . . . . . . Special Melee Weapon 1 | . . . . . . 1 . . . . . . . . . . . . . . . . . . . . . . . . . . Unidentified Prototypes 61 | . . 3 4 . . 7 . . . 8 . 2 . 1 . . 10 . 4 1 . . 1 4 2 3 . 1 5 . 1 4 Parts Lost 6 | . . . . . . 1 . . . . . . . 1 . . . . . . . . . . . . . . . . . 4 Power . | . . . . . . . . . . . . . . . . . . . . . . . . . . . . . . . . . Propulsion . | . . . . . . . . . . . . . . . . . . . . . . . . . . . . . . . . . Utility 6 | . . . . . . 1 . . . . . . . 1 . . . . . . . . . . . . . . . . . 4 Weapon . | . . . . . . . . . . . . . . . . . . . . . . . . . . . . . . . . . Highest Loss Streak 1 | . . . . . . 1 . . . . . . . 1 . . . . . . . . . . . . . . . . . 1 To Critical Strikes . | . . . . . . . . . . . . . . . . . . . . . . . . . . . . . . . . . Average Backups 1 | . . . . . . 1 1 2 2 1 . . . . . . . 2 2 2 2 1 1 2 3 3 3 4 3 3 2 1 Power . | . . . . . . . . . . . . . . . . . . . . . . . . . . . . . . . . . Propulsion . | . . . . . . . . . . . . . . . . . . . . . . . . . . . . . . . . . Utility . | . . . . . . . 1 2 2 1 . . . . . . . 1 1 1 1 1 . 1 1 1 1 2 1 1 1 . Weapon . | . . . . . . . . . . . . . . . . . . 1 1 1 1 . . 1 1 2 . 1 1 1 . . Tool/Special . | . . . . . . . . . . . . . . . . . . . . . . . . . . . . . . . . . Unused Backups 17 | . 2 . . . . . 1 . . . . . . . . . . . . . . . 1 2 1 . . 1 . 7 . 2 Power 1 | . . . . . . . . . . . . . . . . . . . . . . . . . . . . . . . . 1 Propulsion 2 | . . . . . . . 1 . . . . . . . . . . . . . . . 1 . . . . . . . . . Utility 5 | . . . . . . . . . . . . . . . . . . . . . . . . 2 1 . . . . 2 . . Weapon 8 | . 2 . . . . . . . . . . . . . . . . . . . . . . . . . . 1 . 5 . . Tool/Special 1 | . . . . . . . . . . . . . . . . . . . . . . . . . . . . . . . . 1 Average Slot Usage (%) 91 | . 82 93 100 100 93 97 98 100 100 94 89 94 95 96 100 100 99 85 82 81 81 83 81 80 88 90 92 98 94 88 87 83 Core 3 | . . 6 6 6 6 5 5 5 5 4 3 5 5 7 9 9 8 . . . . . . . . . . . . . . . Reactor 2 | . . . . . . . . . . . 1 . . . . . . 4 4 4 4 4 4 4 4 4 6 9 8 8 8 9 Flight 22 | . 20 30 33 33 32 27 26 26 26 26 21 25 25 23 23 23 22 19 15 13 13 13 13 12 18 22 22 22 20 20 19 19 Device 25 | . 7 9 13 13 10 11 10 16 21 22 34 30 25 27 33 33 31 28 28 31 31 31 35 36 36 36 36 36 33 32 31 26 Storage 2 | . . . . . . . . . . . 3 5 5 4 4 4 4 4 4 4 4 4 4 4 4 4 4 4 4 4 3 3 Processor 12 | . 9 12 20 20 21 24 29 31 31 22 5 5 10 9 9 9 9 9 9 9 9 9 9 9 9 9 9 9 9 12 11 11 Hackware 5 | . . . . . . 10 10 4 . . . 8 10 8 4 4 5 9 9 9 9 9 4 4 4 4 4 4 4 4 3 4 Energy Gun 2 | . 1 2 20 20 19 5 . . . . . . . . . . . . . . . . . . 1 . . 3 4 . . . Energy Cannon 9 | . . . . . . 10 15 15 15 14 14 15 15 12 14 14 13 9 9 9 9 11 9 9 9 9 9 9 8 8 7 7 Ballistic Gun 1 | . 25 19 . . . . . . . . . . . . . . . . . . . . . . . . . . . . . . Peak Build Rating 213 | 6 10 34 35 34 46 89 88 92 95 108 158 127 127 140 140 140 158 149 168 168 168 180 181 183 192 192 197 206 213 207 213 211 Average Rating 127 | 4 8 22 33 34 41 76 85 88 93 92 124 120 127 131 140 140 141 149 156 167 168 174 169 174 182 183 180 195 200 194 200 199 On Entrance 124 | . 6 10 34 34 34 40 83 88 92 95 108 120 127 127 140 140 140 149 149 165 168 168 180 169 183 183 184 185 198 207 195 208 Avg Prop Armor Cover (%) 1 | . . . . . . 1 . . . . 1 . . . . . . . 2 . . . . . . . . . . . 1 . Naked Turns . | . . . . . . . . . . . . . . . . . . . . . . . . . . . . . . . . . Heaviest Build 84 | 7 11 26 23 23 23 40 40 42 45 49 82 72 54 61 61 61 70 70 73 73 73 83 83 79 80 78 78 75 75 75 84 77 Greatest Support 84 | 31 31 30 35 35 35 40 45 45 60 60 65 77 65 70 70 70 72 72 78 78 78 83 83 84 83 75 75 75 75 75 80 80 Greatest Overweight (x) 1 | . . . . . . . . . . 1 1 1 . . . . 1 . 1 . . . . . . 1 1 . . . 1 1 Average Overweight (x) . | . . . . . . . . . . . . . . . . . . . . . . . . . . . . . . . . . Largest Inventory Capacity 6 | 1 1 1 2 2 3 3 3 3 3 3 3 3 3 3 3 3 4 4 4 4 4 4 4 4 4 4 4 4 6 6 6 6 Average Capacity 3 | 1 1 1 1 2 2 3 3 3 3 3 3 3 3 3 3 3 3 4 4 4 4 4 4 4 4 4 4 4 5 6 6 6 Most Carried 6 | . 1 1 2 2 3 3 3 3 3 3 3 3 3 3 3 3 4 4 4 4 4 4 4 4 4 4 4 4 5 6 6 6 Average Carried 2 | . . . 1 2 2 2 2 2 2 2 . 1 1 2 3 3 2 4 3 4 4 3 3 3 3 3 3 3 4 4 4 3 Final Capacity 6 | 1 1 1 2 2 3 3 3 3 3 3 3 3 3 3 3 3 4 4 4 4 4 4 4 4 4 4 4 4 6 6 6 6 Final Carried 6 | . 1 . 2 2 3 1 2 2 3 3 3 1 3 3 3 3 4 4 4 4 4 4 3 4 4 4 4 4 4 6 5 5 Class Distribution -------------------- 51% | Hacker-Scout 13% | Machinist-Scout 4% | Commander-Sprinter 4% | Machinist-Sprinter 3% | Sprinter 3% | Gunner 3% | Scavenger-Scout Dominant Class ---------------- Gunner | -10/Materials Scavenger-Sprinter | -9/Materials Sprinter | -9/Storage Commander-Sprinter | -9/Recycling Commander-Sprinter | -9/Scraptown Hacker-Scout | -6/Factory Hacker-Scout | -6/Lower Caves Scavenger-Scout | -6/Lower Caves Scavenger-Scout | -6/Zion Scavenger-Scout | -6/Deep Caves Golem | -5/Proximity Caves Hacker-Scout | -5/Factory Hacker-Scout | -5/Waste Hacker-Scout | -5/Factory Hacker-Scout | -5/Upper Caves Hacker-Scout | -5/Upper Caves Hacker-Scout | -5/Warlord Hacker-Scout | -4/Proximity Caves Hacker-Scout | -4/Factory Hacker-Scout | -4/Extension Hacker-Scout | -4/Cetus Hacker-Scout | -4/Archives Hacker-Scout | -4/Hub_04(d) Hacker-Scout | -3/Research Machinist-Scout | -3/Armory Hacker-Scout | -3/Lab Machinist-Scout | -2/Research Machinist-Scout | -2/Testing Machinist-Scout | -2/Section 7 Machinist-Scout | -1/Access Machinist-Scout | -1/Command Machinist-Sprinter | -1/Access_0 Resources | -11 -10 -9 -9 -9 -9 -6 -6 -6 -6 -6 -5 -5 -5 -5 -5 -5 -5 -4 -4 -4 -4 -4 -4 -3 -3 -3 -2 -2 -2 -1 -1 -1 ----------- Run | Yrd Mat Mat Sto Rec Scr Fac Low Low Zio Dee Pro Fac Was Fac Upp Upp War Pro Fac Ext Cet Arc Hub Res Arm Lab Res Tes Sec Acc Com Ac0 Matter Collected 6154 | 178 945 1370 80 . 870 649 20 40 . 170 210 165 . 187 . . 240 . 170 30 . . 60 70 130 . 70 5 135 14 156 190 Remotely . | . . . . . . . . . . . . . . . . . . . . . . . . . . . . . . . . . Salvage Created 136553 | . 743 2537 1573 377 1046 7281 1351 678 19 689 1065 2362 . 11731 1207 770 12215 925 15571 2906 597 294 9848 10708 8396 . 3054 568 2187 5090 26855 3910 Parts 7022 | . 59 151 110 11 56 330 30 23 9 27 60 121 27 545 70 44 702 90 737 136 31 12 496 613 537 . 195 41 182 256 1053 268 Haulers Intercepted 65 | . 2 5 6 . . 8 1 . . . . 8 . 6 . . . . 6 . . . 4 5 . . 3 . 1 10 . . Recyclers Shooed 10 | . 2 . . . . 8 . . . . . . . . . . . . . . . . . . . . . . . . . . Parts Field Recycled . | . . . . . . . . . . . . . . . . . . . . . . . . . . . . . . . . . Retrieved Matter . | . . . . . . . . . . . . . . . . . . . . . . . . . . . . . . . . . Parts Self-Destructed 308 | . . . . . . . 29 18 . . 57 . . . 69 48 . 87 . . . . . . . . . . . . . . Prevented 1 | . . . . . . . . . . . . . . . 1 . . . . . . . . . . . . . . . . . Parts Restored 1 | . . . . . . . . . . . . 1 . . . . . . . . . . . . . . . . . . . . Broken 1 | . . . . . . . . . . . . 1 . . . . . . . . . . . . . . . . . . . . Kills | -11 -10 -9 -9 -9 -9 -6 -6 -6 -6 -6 -5 -5 -5 -5 -5 -5 -5 -4 -4 -4 -4 -4 -4 -3 -3 -3 -2 -2 -2 -1 -1 -1 ------- Run | Yrd Mat Mat Sto Rec Scr Fac Low Low Zio Dee Pro Fac Was Fac Upp Upp War Pro Fac Ext Cet Arc Hub Res Arm Lab Res Tes Sec Acc Com Ac0 Combat Hostiles Destroyed 2153 | . 20 55 36 3 20 111 14 12 1 15 22 29 6 197 30 15 244 34 193 39 8 4 141 165 158 . 39 8 24 48 416 46 Guns 164 | . 15 55 36 3 20 35 . . . . . . . . . . . . . . . . . . . . . . . . . . Cannons 1928 | . . . . . . 54 10 9 1 13 22 24 6 183 30 15 244 34 192 39 8 4 141 162 158 . 39 8 24 46 416 46 AOE 41 | . 5 . . . . 11 . . . . . 5 . 14 . . . . 1 . . . . 3 . . . . . 2 . . Classes Destroyed 41 | . 7 4 2 . 5 6 . . 1 2 . 1 1 . 1 1 6 . 1 . . . . 2 1 . . . . . . . Worker 45 | . 2 . 1 . . 9 . . . . . 1 . 7 . . . . 12 . . . 1 3 . . 2 1 3 1 2 . Builder 27 | . . 1 1 . . 2 . . . . . 4 . 7 . . . . 6 . . . 1 1 . . 1 1 . 2 . . Tunneler 11 | . 1 1 . . . 1 . . . . . . . 4 . . . . 3 . . . . . . . . . . 1 . . Hauler 65 | . 2 5 6 . . 8 1 . . . . 8 . 6 . . . . 6 . . . 4 5 . . 3 . 1 10 . . Recycler 43 | . 4 . . 2 . 11 . . . . . . . 7 . . . . 8 4 . . 2 . . . 1 . . 1 3 . Carrier 11 | . . . . . . . . . . . . . . . . 1 . . 3 . . . 1 2 1 . . . . 2 1 . Minesweeper 2 | . . . . . . . . . . . . . . . 1 . . 1 . . . . . . . . . . . . . . Mechanic 25 | . . . 2 . . 3 . . . . . . . 6 . . 2 . 4 . . . 5 2 1 . . . . . . . Operator 22 | . . . 2 . . 4 . . . . . 1 . 2 . . . . 3 1 . 1 1 3 . . . 1 . 1 2 . Drone 63 | . . . . . . 1 . . . . . . . 45 . . . 2 10 . . . . . 4 . . . . 1 . . Turret 76 | . . . . . . . . . . . . . . . . . . . 46 . . . . . . . 2 . . 28 . . Watcher 106 | . 3 3 2 . . 8 . . . . . 6 . 10 . . . . 11 3 2 . 5 10 6 . 13 2 5 11 6 . Swarmer 262 | . 8 12 4 . . 10 2 3 . . 3 5 . 15 11 2 17 18 27 5 . . 9 11 18 . 9 5 . 12 56 . Cutter 16 | . . . . . . 1 . . . . . . . . . . . . . . . . . . 3 . . . . . 12 . Saboteur 59 | . . . . . . 3 . . . . . . . 6 . . 10 . 5 1 . . 7 12 11 . . . . . 4 . Grunt 694 | . 12 30 20 . . 50 8 7 . . 7 5 . 55 13 5 89 12 75 15 . . 46 57 47 . 7 . . 12 122 . Brawler 105 | . . . . . . 7 . . . . 2 1 . 15 1 3 16 1 6 . . . 6 11 8 . . . . 3 25 . Duelist 88 | . . 2 . . . 5 2 . . . 2 . . 12 2 . 8 . 8 2 . . 7 12 4 . . . . 1 21 . Protector 61 | . . 1 1 . . 2 . . . . 1 . . 4 . . 15 . 10 1 . . 8 4 5 . . . . 1 8 . Researcher 10 | . . . . . . . . . . . . . . . . . . . . . . . . . . . . 1 9 . . . Sentry 156 | . . 10 11 3 . 7 2 1 . . 2 3 . 24 3 2 . 1 14 6 . 4 22 13 12 . 5 . 2 5 4 . Demolisher 15 | . . . . . . . . . . . . . . . . . 2 . . . . . . . 4 . . . . . 9 . Specialist 18 | . . . . . . . . . . . . . . . . . 7 . . . . . . . . . . . . . 11 . Hunter 178 | . . . . . . 9 . . . . 2 1 . 12 . 1 9 . 16 4 . . 11 19 15 . 8 . . 4 67 . Programmer 213 | . . . . . . 15 . 1 . . 2 13 . 7 . 2 18 . 17 . . . 15 16 17 . 10 3 14 2 61 . Heavy 12 | . . . . . . . . . . . . 1 . 1 . . . . 2 . . . 2 2 1 . . . . 2 1 . Q-Series 3 | . . . . . . . . . . . . . . . . . . . . . . . . . 1 . . . . 2 . . Behemoth 16 | . . . . . . 1 . . . . 1 . . 1 . . . . 2 2 . . 1 2 1 . . . . 2 3 . Compactor 6 | . . . . . . . . . . . . . 6 . . . . . . . . . . . . . . . . . . . Armor Guard 4 | . . . . . . . . . . . . . . . . . . . . . . . . . 4 . . . . . . . Cetus Guard 8 | . . . . . . . . . . . . . . . . . . . . . 8 . . . . . . . . . . . S7 Guard 1 | . . . . . . . . . . . . . . . . . . . . . . . 1 . . . . . . . . . M Guard 2 | . . . . . . . . . . . . . . . . . . . . . . . . . . . . . . . 2 . Enhanced Grunt 30 | . . . . . . . . . . . . . . . . . . . . . . . . . . . . . . . . 30 Enhanced Sentry 2 | . . . . . . . . . . . . . . . . . . . . . . . . . . . . . . . . 2 Enhanced Hunter 7 | . . . . . . . . . . . . . . . . . . . . . . . . . . . . . . . . 7 Lightning 6 | . . . . . . . . . . . . . . . . . . . . . . . 6 . . . . . . . . . Combat Programmer 3 | . . . . . . . . . . . . . . . . . . . . . . . . 1 . . . . . . 2 . Investigator 3 | . . . . . . . . . . . . . . . . . . . . . . . . 2 1 . . . . . . . Striker 13 | . . . . . . . . . . . . . . . . . 7 . . . . . . . 2 . . . 2 . 2 . Executioner 22 | . . . . . . . . . . . . . . . . . 12 . . . . . . 3 . . . . 4 . 3 . Alpha 7 4 | . . . . . . . . . . . . . . . . . . . . . . . . 1 . . . . 2 . 1 . Federalist 1 | . . . . . 1 . . . . . . . . . . . . . . . . . . . . . . . . . . . Explorer 1 | . . . . . 1 . . . . . . . . . . . . . . . . . . . . . . . . . . . Ranger 4 | . . . . . 4 . . . . . . . . . . . . . . . . . . . . . . . . . . . Scrapper 11 | . . . . . 11 . . . . . . . . . . . . . . . . . . . . . . . . . . . Zionite 1 | . . . . . . . . . 1 . . . . . . . . . . . . . . . . . . . . . . . Z-Light 9 | . . . . . . . . . . 9 . . . . . . . . . . . . . . . . . . . . . . Decomposer 2 | . . . . . . . . . . . . . . . . . . 2 . . . . . . . . . . . . . . Packrat 4 | . . . . . . . 2 . . . . . . . . . . 2 . . . . . . . . . . . . . . Assembled 9 | . . . . . . . . . . 6 . . . . . . . . . . . . . . . . . . . . 3 . Surgeon 5 | . . . . . . . . . . . . . . . . . 5 . . . . . . . . . . . . . . . Thug 15 | . . . . . 1 . . . . . . . . . . . 13 . . 1 . . . . . . . . . . . . Savage 2 | . . . . . 2 . . . . . . . . . . . . . . . . . . . . . . . . . . . Butcher 4 | . . . . . . . . . . . . . . . . . 3 . . 1 . . . . . . . . . . . . Bouncer 6 | . . . . . . . . . . . . . . . . . 6 . . . . . . . . . . . . . . . Martyr 1 | . . . . . . . . . . . . . . . . . 1 . . . . . . . . . . . . . . . Guerrilla 1 | . . . . . . . . . . . . . . . . . . . . 1 . . . . . . . . . . . . Mutant 4 | . . . . . . . . . . . . . . . . . 4 . . . . . . . . . . . . . . . Commander 3 | . . . . . . . . . . . . . . . . . 3 . . . . . . . . . . . . . . . Knight 2 | . . . . . . . . . . . . . . . . . 2 . . . . . . . . . . . . . . . Best Kill Streak 121 | . 6 12 23 1 8 13 9 7 2 5 6 10 6 23 16 11 33 17 69 32 37 5 32 27 30 . 17 12 18 37 121 11 Combat Bots Only 121 | . 3 7 19 1 8 8 9 7 1 5 6 8 6 20 16 11 33 17 63 31 35 4 31 25 28 . 12 8 5 11 121 11 Max Kills in Single Turn 11 | . 2 2 2 1 1 9 2 1 1 2 1 4 1 7 3 2 3 3 6 5 2 2 3 4 8 . 3 3 2 4 11 4 Gunslinging 1 | . 1 1 1 . . 1 . . . . . . . . . . . . . . . . . . . . . . . . . . Exploded 8 | . 2 . . . . 8 . . . . . 4 . 4 . . . . 1 . . . . 1 . . . . . 2 . . Melee . | . . . . . . . . . . . . . . . . . . . . . . . . . . . . . . . . . Uniques/NPCs Destroyed 18 | . . . . . . . . . 1 . . . . . . . 2 . 1 1 1 . . 1 1 . . . . 1 2 7 Imprinter (-6/Zion) Warlord (-5/Warlord) Fake God Mode (-5/Warlord) QV-33N (-4/Factory) A7 (-4/Extension) Revision 17 (-4/Cetus) CL-0N3 (-3/Research) DW-4LL (-3/Armory) GL-D0S (-1/Access) MAIN.C Shell (-1/Command) MAIN.C (-1/Command) A6 (-1/Access_0) A5 (-1/Access_0) A8 (-1/Access_0) A4 (-1/Access_0) A3 (-1/Access_0) A2 (-1/Access_0) Architect (-1/Access_0) Combat | -11 -10 -9 -9 -9 -9 -6 -6 -6 -6 -6 -5 -5 -5 -5 -5 -5 -5 -4 -4 -4 -4 -4 -4 -3 -3 -3 -2 -2 -2 -1 -1 -1 -------- Run | Yrd Mat Mat Sto Rec Scr Fac Low Low Zio Dee Pro Fac Was Fac Upp Upp War Pro Fac Ext Cet Arc Hub Res Arm Lab Res Tes Sec Acc Com Ac0 Hostile Shots Fired 4067 | . 62 130 77 8 44 460 23 36 18 39 84 156 . 239 2 2 36 . 225 30 . 1 166 219 430 . 60 2 14 202 306 996 Missed 2665 | . 28 46 32 4 22 221 11 22 12 20 45 114 . 139 2 . 21 . 112 22 . 1 110 137 346 . 45 1 10 142 228 772 Hits 1402 | . 34 84 45 4 22 239 12 14 6 19 39 42 . 100 . 2 15 . 113 8 . . 56 82 84 . 15 1 4 60 78 224 Melee 15 | . . 2 . . . 1 . . . . . . . . . . . . 2 . . . . 7 . . . . . . . 3 Projectile 1387 | . 34 82 45 4 22 238 12 14 6 19 39 42 . 100 . 2 15 . 111 8 . . 56 75 84 . 15 1 4 60 78 221 AOE 31 | . 3 . . . . 1 . . . . . 3 . 7 . . . . . . . . . 1 2 . . . . 5 9 . Critical Strikes 87 | . 1 4 2 2 . 10 . . 1 . 1 4 . 11 . . . . 16 . . . 2 7 5 . . . . 2 6 13 Actively Blocked 31 | . . . . . . . . . . . . . . . . . . . . . . . 2 7 5 . . . . 2 2 13 Part Disruptions 10 | . . . . . . . . . . . . . . 2 . . 2 . 1 . . . . . . . . . . . 3 2 Damage Taken 30992 | . 622 1073 598 76 428 4240 231 216 71 518 643 1207 . 2633 . 33 770 . 2103 152 . . 1511 2028 1628 . 286 15 223 1202 3129 5356 Core 25041 | . 514 762 407 59 360 3486 192 177 58 408 505 968 . 2107 . 29 659 . 1700 122 . . 1240 1658 1301 . 227 12 176 950 2559 4405 Absorbed by Shields 274 | . . . . . . . . . . . . . . . . . . . . . . . . 274 . . . . . . . . Redirected to Core 20442 | . 349 611 348 31 240 2685 139 136 42 334 489 853 . 1879 . 13 418 . 1450 104 . . 983 1354 1149 . 211 12 176 873 2140 3423 Ignored by Resistances 2739 | . . . . . . . . . 3 62 28 77 . 114 . 2 8 . 126 . . . 114 155 347 . 71 4 32 282 611 703 Regen/Repaired (Parts) 26 | . . . . . . . . . 26 . . . . . . . . . . . . . . . . . . . . . . . Core Remaining (%) 87 | 100 67 . . . 91 . . . . . 100 . . . . . . 100 . . . . 88 . . 100 . . 100 . . 40 Volleys Fired 3597 | . 115 148 115 39 33 310 37 20 2 44 47 110 8 268 27 15 378 43 379 42 12 10 202 223 176 4 67 19 99 124 341 140 Largest 3 | . 3 3 3 3 3 3 3 3 3 3 3 3 2 3 3 2 3 2 2 2 2 3 3 2 2 1 2 2 2 2 2 2 Hottest 270 | . 80 165 165 165 165 270 270 270 270 270 205 180 180 270 270 180 270 180 180 180 180 270 270 180 180 81 180 180 180 180 180 180 Shots Fired 7691 | . 251 433 345 117 99 880 109 60 6 120 141 218 12 486 57 30 703 86 679 84 24 25 416 446 351 4 91 27 190 248 681 272 Gun 1671 | . 204 433 345 117 99 455 . . . . . . . . . . . . . . . . . . . 4 . 6 8 . . . Cannon 5970 | . . . . . . 425 109 60 6 120 141 218 12 486 57 30 703 86 679 84 24 25 416 446 351 . 91 21 182 248 681 269 Launcher 50 | . 47 . . . . . . . . . . . . . . . . . . . . . . . . . . . . . . 3 Special . | . . . . . . . . . . . . . . . . . . . . . . . . . . . . . . . . . Kinetic 586 | . 201 385 . . . . . . . . . . . . . . . . . . . . . . . . . . . . . . Thermal 2134 | . 3 48 345 117 99 880 109 60 6 120 141 188 . . . . . . . . . . . . . 4 . 6 8 . . . Explosive 50 | . 47 . . . . . . . . . . . . . . . . . . . . . . . . . . . . . . 3 Electromagnetic . | . . . . . . . . . . . . . . . . . . . . . . . . . . . . . . . . . Phasic 4921 | . . . . . . . . . . . . 30 12 486 57 30 703 86 679 84 24 25 416 446 351 . 91 21 182 248 681 269 Robot Hit Streak 63 | . 12 29 31 32 41 42 29 18 23 45 58 63 27 34 9 17 41 14 34 15 12 13 38 50 47 . 13 13 34 31 44 21 Robot Miss Streak 6 | . 5 6 2 . 2 4 2 1 . 1 1 2 1 3 1 1 2 2 2 1 1 1 2 1 1 . 2 1 2 2 2 3 Penetration Max 10 | . . . . . . . . . . . . 2 . 4 2 1 3 2 3 7 1 1 4 3 7 . 2 2 1 3 10 3 Secondary Targets 26 | . 2 6 7 . 5 6 . . . . . . . . . . . . . . . . . . . . . . . . . . Max Gunslinging Chain 2 | . 2 1 1 . 1 1 . . . . . . . . . . . . . . . . . . . . . . . . . . Shots Hit Robots 4109 | . 123 259 160 29 83 584 75 25 5 40 84 130 9 240 24 16 375 43 345 60 12 8 242 247 149 . 51 4 82 115 322 168 Core Hits 2698 | . 64 106 65 10 43 299 29 14 2 23 37 51 1 202 19 13 221 28 229 48 8 4 126 165 124 . 43 7 72 82 458 105 Critical Kills 18 | . . 1 . . . 8 5 3 . 1 . . . . . . . . . . . . . . . . . . . . . . Critical Parts Destroyed 2 | . 1 1 . . . . . . . . . . . . . . . . . . . . . . . . . . . . . . Critical Strikes 2008 | . 1 2 14 5 6 29 5 3 . 1 . 11 10 193 18 11 291 28 234 37 13 6 146 135 127 . 45 6 35 74 458 64 Burn 46 | . . . 14 5 6 21 . . . . . . . . . . . . . . . . . . . . . . . . . . Meltdown 17 | . . . . . . 8 5 3 . 1 . . . . . . . . . . . . . . . . . . . . . . Destroy 3 | . 1 2 . . . . . . . . . . . . . . . . . . . . . . . . . . . . . . Phase 1942 | . . . . . . . . . . . . 11 10 193 18 11 291 28 234 37 13 6 146 135 127 . 45 6 35 74 458 64 Melee Attacks 1 | . . . . . . 1 . . . . . . . . . . . . . . . . . . . . . . . . . . Impact . | . . . . . . . . . . . . . . . . . . . . . . . . . . . . . . . . . Slashing . | . . . . . . . . . . . . . . . . . . . . . . . . . . . . . . . . . Piercing . | . . . . . . . . . . . . . . . . . . . . . . . . . . . . . . . . . Sneak Attacks 1 | . . . . . . 1 . . . . . . . . . . . . . . . . . . . . . . . . . . Combat Hostiles . | . . . . . . . . . . . . . . . . . . . . . . . . . . . . . . . . . Follow-up Attacks . | . . . . . . . . . . . . . . . . . . . . . . . . . . . . . . . . . Damage Inflicted 296358 | . 1807 3707 3106 592 1612 17742 2548 950 151 1526 4407 6809 440 21250 1936 1064 23899 2690 30224 6210 1260 540 19549 23577 18501 . 5268 971 7740 11602 60780 13900 Guns 16980 | . 1128 3503 3106 553 1612 7078 . . . . . . . . . . . . . . . . . . . . . . . . . . Cannons 267194 | . . . . . . 8386 2548 950 151 1526 4407 6017 440 17412 1936 1064 23788 2690 27617 6210 1260 540 19434 22686 18426 . 5268 918 7740 11100 60780 13900 Explosions 12184 | . 679 204 . 39 . 2278 . . . . . 792 . 3838 . . 111 . 2607 . . . 115 891 75 . . 53 . 502 . . Melee . | . . . . . . . . . . . . . . . . . . . . . . . . . . . . . . . . . Ramming . | . . . . . . . . . . . . . . . . . . . . . . . . . . . . . . . . . Kinetic 4257 | . 1116 3141 . . . . . . . . . . . . . . . . . . . . . . . . . . . . . . Thermal 40346 | . 12 566 3106 553 1612 17129 2548 950 151 1526 4407 5511 . 808 . . . . 1390 . . . . 77 . . . . . . . . Explosive 6594 | . 679 . . 39 . 452 . . . . . 538 . 2795 . . 111 . 708 . . . . 695 75 . . . . 502 . . Electromagnetic 1192 | . . . . . . 161 . . . . . . . 235 . . . . 509 . . . 115 119 . . . 53 . . . . Impact . | . . . . . . . . . . . . . . . . . . . . . . . . . . . . . . . . . Slashing . | . . . . . . . . . . . . . . . . . . . . . . . . . . . . . . . . . Piercing . | . . . . . . . . . . . . . . . . . . . . . . . . . . . . . . . . . Phasic 243969 | . . . . . . . . . . . . 760 440 17412 1936 1064 23788 2690 27617 6210 1260 540 19434 22686 18426 . 5268 918 7740 11100 60780 13900 Highest Corruption 5 | . . . . . . 5 . . . . . 1 1 1 . . . . . . . . . . . . . . . . . . Average Corruption 1 | . . . . . . 2 . . . . . 1 1 1 . . . . . . . . . . . . . . . . . . Corruption Purged 8 | . . . . . . 7 . . . . . . . 1 . . . . . . . . . . . . . . . . . . Corruption Blocked 27 | . . . . . . 3 . . . . . . . . . . 1 . 3 . . . 8 1 4 . 1 . . 1 5 . Effects 55 | . . . . . . 29 . . . . . 12 . 14 . . . . . . . . . . . . . . . . . . Message Errors 9 | . . . . . . 5 . . . . . 3 . 1 . . . . . . . . . . . . . . . . . . Matter Fused 12 | . . . . . . 7 . . . . . 1 . 4 . . . . . . . . . . . . . . . . . . Heat Flow Errors 4 | . . . . . . 2 . . . . . . . 2 . . . . . . . . . . . . . . . . . . Energy Discharges 6 | . . . . . . 4 . . . . . 1 . 1 . . . . . . . . . . . . . . . . . . Parts Rejected 1 | . . . . . . . . . . . . 1 . . . . . . . . . . . . . . . . . . . . Parts Fused 1 | . . . . . . 1 . . . . . . . . . . . . . . . . . . . . . . . . . . Data Loss (minor) 6 | . . . . . . 2 . . . . . 1 . 3 . . . . . . . . . . . . . . . . . . Data Loss (major) 2 | . . . . . . 1 . . . . . . . 1 . . . . . . . . . . . . . . . . . . Misfires 4 | . . . . . . 2 . . . . . 2 . . . . . . . . . . . . . . . . . . . . Alerts 4 | . . . . . . . . . . . . 3 . 1 . . . . . . . . . . . . . . . . . . Weapon Failures 6 | . . . . . . 5 . . . . . . . 1 . . . . . . . . . . . . . . . . . . Overload Shots . | . . . . . . . . . . . . . . . . . . . . . . . . . . . . . . . . . Overflow Damage 8388 | . . 8 . . . 294 122 18 36 53 211 328 . 812 101 29 407 207 960 132 70 . 684 894 572 . 240 73 139 268 1466 264 Projectiles 7456 | . . . . . . 128 122 18 36 53 211 269 . 376 101 29 407 207 833 132 70 . 684 807 572 . 240 73 139 219 1466 264 Explosions 932 | . . 8 . . . 166 . . . . . 59 . 436 . . . . 127 . . . . 87 . . . . . 49 . . Melee . | . . . . . . . . . . . . . . . . . . . . . . . . . . . . . . . . . Knockbacks . | . . . . . . . . . . . . . . . . . . . . . . . . . . . . . . . . . Impact . | . . . . . . . . . . . . . . . . . . . . . . . . . . . . . . . . . Kinetic . | . . . . . . . . . . . . . . . . . . . . . . . . . . . . . . . . . Secondary . | . . . . . . . . . . . . . . . . . . . . . . . . . . . . . . . . . Self-Inflicted Damage 1068 | . 96 . . 18 . 192 . . . . . 265 . 80 . . . . 16 . . . 287 11 . . . . 103 . . . Shots 20 | . 3 . . 1 . 3 . . . . . 4 . 2 . . . . 1 . . . 4 1 . . . . 1 . . . Rammed . | . . . . . . . . . . . . . . . . . . . . . . . . . . . . . . . . . Targets Rammed . | . . . . . . . . . . . . . . . . . . . . . . . . . . . . . . . . . Kicked . | . . . . . . . . . . . . . . . . . . . . . . . . . . . . . . . . . Crushed . | . . . . . . . . . . . . . . . . . . . . . . . . . . . . . . . . . Highest Temperature 471 | . 194 345 93 20 10 471 285 95 190 158 . 101 5 465 192 22 236 8 60 1 1 160 225 11 33 . 89 27 4 . . . Average Temperature 52 | . 53 78 28 5 4 83 103 26 88 103 . 50 5 90 22 11 11 6 12 1 1 84 51 3 9 . 23 12 4 . . . Received Heat Transfer 5020 | . 201 390 297 36 183 1102 63 69 47 165 105 210 . 464 . 9 27 . 384 . . . 66 191 168 . 54 9 18 96 189 477 Effects 16 | . . 3 . . . 5 . . . . . . . 8 . . . . . . . . . . . . . . . . . . Shutdowns 3 | . . . . . . 1 . . . . . . . 2 . . . . . . . . . . . . . . . . . . Energy Bleed 1 | . . . . . . . . . . . . . . 1 . . . . . . . . . . . . . . . . . . Interference 8 | . . 3 . . . . . . . . . . . 5 . . . . . . . . . . . . . . . . . . Damage (major) 4 | . . . . . . 4 . . . . . . . . . . . . . . . . . . . . . . . . . . Siege Activations . | . . . . . . . . . . . . . . . . . . . . . . . . . . . . . . . . . Martial Activations . | . . . . . . . . . . . . . . . . . . . . . . . . . . . . . . . . . Shielding Activations . | . . . . . . . . . . . . . . . . . . . . . . . . . . . . . . . . . Robots Disrupted . | . . . . . . . . . . . . . . . . . . . . . . . . . . . . . . . . . Combat Hostiles . | . . . . . . . . . . . . . . . . . . . . . . . . . . . . . . . . . Robots Corrupted 1 | . . . . . . . . . . . . . . . . . . . 1 . . . . . . . . . . . . . Combat Hostiles . | . . . . . . . . . . . . . . . . . . . . . . . . . . . . . . . . . Parts Fried 8 | . . . . . . . . . . . . . . . . . 4 . 1 . . . 2 . . . . . . . 1 . Impact Corruptions . | . . . . . . . . . . . . . . . . . . . . . . . . . . . . . . . . . Robots Melted 21 | . . . . . . 11 5 3 . 2 . . . . . . . . . . . . . . . . . . . . . . Combat Hostiles 20 | . . . . . . 11 4 3 . 2 . . . . . . . . . . . . . . . . . . . . . . Parts Melted 146 | . . . 15 8 9 76 6 9 . 13 2 3 . . . . 4 . . . . . . . . . . . . . 1 . Heat Transferred 54725 | . 25 744 7058 1443 2869 27645 3900 1450 72 2350 2472 2908 . 650 . . . . 1089 . . . . 50 . . . . . . . . Parts Sabotaged . | . . . . . . . . . . . . . . . . . . . . . . . . . . . . . . . . . Parts Stolen . | . . . . . . . . . . . . . . . . . . . . . . . . . . . . . . . . . Parts Stripped . | . . . . . . . . . . . . . . . . . . . . . . . . . . . . . . . . . Power Chain Reactions 6 | . . . . . . . . . . . . . . 1 . . . . 1 . . . 2 2 . . . . . . . . Alert | -11 -10 -9 -9 -9 -9 -6 -6 -6 -6 -6 -5 -5 -5 -5 -5 -5 -5 -4 -4 -4 -4 -4 -4 -3 -3 -3 -2 -2 -2 -1 -1 -1 ------- Run | Yrd Mat Mat Sto Rec Scr Fac Low Low Zio Dee Pro Fac Was Fac Upp Upp War Pro Fac Ext Cet Arc Hub Res Arm Lab Res Tes Sec Acc Com Ac0 Maximum Alert Level 5 | . 3 5 5 3 . 5 . . . . . 5 3 5 . . . . 5 5 5 4 5 5 5 . 3 2 3 5 5 . Low Security (%) 6 | 100 30 . . . . 10 . . . . . . . . . . . . 8 . . . . . . . 4 74 26 . . . Level 1 5 | . 15 6 . . . 4 . . . . . 36 . . . . . . . . . . . . . . 9 12 5 . . . Level 2 11 | . 49 26 9 2 . 5 . . . . . 33 . 6 . . . . 2 . . . 7 . . . 44 13 30 10 . . Level 3 16 | . 4 24 31 97 . 16 . . . . . 12 100 14 . . . . 24 . . . 10 . . . 40 . 37 20 . . Level 4 9 | . . 40 21 . . 17 . . . . . 9 . 22 . . . . 4 . . 100 3 . . . . . . 11 . . Level 5 20 | . . 2 37 . . 25 . . . . . 8 . 9 . . . . 25 96 100 . 12 44 43 . . . . 1 22 . High Security 29 | . . . . . . 20 . . . . . . . 46 . . . . 34 3 . . 65 55 56 . . . . 57 77 . Max Security . | . . . . . . . . . . . . . . . . . . . . . . . . . . . . . . . . . Sterilizations 6 | . . 1 . . . . . . . . . . . 1 . . . . 1 . . . 1 1 1 . . . . . . . Peak Influence 18011 | . 857 1639 1791 952 . 5119 . . . . . 2220 769 8583 . . . . 8431 4604 2796 1287 6430 8419 10668 . 1081 578 1036 3705 18011 . Initial 4419 | . . 362 519 696 . . . . . . . 293 725 518 . . . . 174 4130 2577 1111 443 3375 4419 . . 578 . 621 2371 . Average 2975 | . 354 940 1264 876 . 1668 . . . . . 665 739 3439 . . . . 2993 4244 2706 1247 3747 4786 6797 . 655 134 558 1995 10783 . Influence Increases 89310 | . 1307 1812 1840 576 . 6443 320 260 . . 590 2788 66 8989 645 350 4050 705 9316 1214 251 178 6177 6166 6985 . 2042 589 1338 3234 18420 2659 Destroy 0b10 Robot/C 39100 | . 400 1080 860 80 . 2160 280 240 . . 420 580 . 2960 600 320 3920 640 3500 760 160 80 2660 3240 3060 . 780 180 660 960 8520 . Destroy 0b10 Robot/NC 2150 | . 60 55 75 15 . 245 30 . . . 15 100 . 260 5 . 85 15 315 45 10 5 135 140 65 . 100 25 60 140 150 . Destroy Leader 5006 | . 100 276 216 . . 482 10 20 . . 50 156 . 440 40 30 . 50 584 86 . . 408 570 490 . 202 24 100 230 442 . Allied During Kill 3836 | . . . 104 41 . . . . . . . . . . . . . . . . . . . . . . . 2 . . 3689 . Trap Triggered on 0b10 20 | . . 10 . . . . . . . . . . . . . . . . . . . . . . . . . 10 . . . . Successful Hack 1148 | . 26 39 71 22 . 129 . . . . . 66 . 18 . . . . 40 14 3 . 65 106 151 . 123 69 68 50 88 . Select Force Hacks 660 | . 60 30 60 120 . 240 . . . . . 120 . 30 . . . . . . . . . . . . . . . . . . Disable Machine 8115 | . 330 90 435 285 . 1170 . . . . . 420 . 1665 . . . . 1410 45 . 45 600 240 435 . 75 90 240 165 240 135 Anti-Garrison Action 1300 | . . . . . . 200 . . . . . . . 300 . . . . 150 . . . 300 . . . . . . 300 50 . Destroy Structure 19620 | . 301 22 4 13 . 377 . . . . . 686 66 2836 . . . . 3302 264 78 48 1904 1570 924 . 657 144 135 1134 2691 2464 Partial Spotted 450 | . 15 45 . . . 90 . . . . . 30 . . . . . . . . . . 15 15 60 . 45 . 45 . 30 60 Lose Combat Pursuer 7905 | . 15 165 15 . . 1350 . . . . 105 630 . 480 . . 45 . 15 . . . 90 285 1800 . 60 45 30 255 2520 . Influence Decreases 86691 | . 450 1439 1285 1493 868 1324 2093 827 2779 . 124 1181 1398 1147 3346 1249 5433 4028 1162 5041 2077 1687 1016 4177 4736 10668 1014 1617 302 565 2824 19341 Entered New Map 71243 | . . 495 711 1089 868 . 1895 637 2779 . . 173 1348 223 3176 1119 4983 3600 103 4301 2027 1667 826 3055 4000 10668 . 450 . 415 1334 19301 Time Decay 7808 | . 450 494 404 254 . 704 198 190 . . 124 628 30 464 170 130 450 428 589 140 50 20 190 362 286 . 404 137 302 150 60 . Search Patrol Dispatched 200 | . . . . . . . . . . . . 200 . . . . . . . . . . . . . . . . . . . . Lost Part 60 | . . . . . . 10 . . . . . . . 10 . . . . . . . . . . . . . . . . . 40 Lost Ally 1550 | . . . 20 . . 10 . . . . . 30 20 . . . . . 20 . . . . 10 . . 10 . . . 1430 . Purge Threat 5830 | . . 450 150 150 . 600 . . . . . 150 . 450 . . . . 450 600 . . . 750 450 . 600 1030 . . . . Squads Dispatched 363 | . 4 11 9 . . 83 . 1 . . 1 21 . 45 . . . . 40 4 . . 27 38 35 . 11 1 6 24 2 . Investigation 89 | . 4 10 3 . . 29 . 1 . . . 9 . 9 . . . . 8 2 . . . 3 6 . 5 . . . . . Extermination 33 | . . . . . . 8 . . . . . 5 . 1 . . . . 4 . . . 1 1 2 . 4 1 4 1 1 . Reinforcement 41 | . . . 1 . . 8 . . . . . 4 . 4 . . . . 6 . . . 3 5 3 . . . 2 4 1 . Assault 195 | . . 1 4 . . 38 . . . . 1 3 . 30 . . . . 22 2 . . 20 29 24 . 2 . . 19 . . Garrison 5 | . . . 1 . . . . . . . . . . 1 . . . . . . . . 3 . . . . . . . . . Intercept . | . . . . . . . . . . . . . . . . . . . . . . . . . . . . . . . . . Searches Triggered 2 | . . . . . . . . . . . . 2 . . . . . . . . . . . . . . . . . . . . Unchained Authorized 10 | . . . . . . . . . . . . 1 . 1 . . . . 2 1 . . 1 1 1 . 1 . . 1 . . Construction Impeded 3 | . . . . . . . . . . . . 1 . . . . . . 2 . . . . . . . . . . . . . Haulers Reinforced 5 | . . . . . . 2 . . . . . 1 . 2 . . . . . . . . . . . . . . . . . . Active Scanning Responses . | . . . . . . . . . . . . . . . . . . . . . . . . . . . . . . . . . Cargo Convoy Interrupts 1 | . . . . . . . . . . . . 1 . . . . . . . . . . . . . . . . . . . . Stealth | -11 -10 -9 -9 -9 -9 -6 -6 -6 -6 -6 -5 -5 -5 -5 -5 -5 -5 -4 -4 -4 -4 -4 -4 -3 -3 -3 -2 -2 -2 -1 -1 -1 --------- Run | Yrd Mat Mat Sto Rec Scr Fac Low Low Zio Dee Pro Fac Was Fac Upp Upp War Pro Fac Ext Cet Arc Hub Res Arm Lab Res Tes Sec Acc Com Ac0 Distress Signals 26 | . 1 2 1 . . . . . . . . 2 . 4 . . . . 1 1 . . . . . . 3 1 . 4 6 . Communications Jammed 4 | . . . . . . . . . . . . 4 . . . . . . . . . . . . . . . . . . . . Distress Signals 4 | . . . . . . . . . . . . 4 . . . . . . . . . . . . . . . . . . . . Times Spotted 1577 | . 29 54 43 3 57 185 13 12 23 15 28 71 6 149 4 5 27 2 112 15 . 1 102 132 185 . 34 7 9 64 142 48 Peak Tracking Total 63 | . 4 6 9 1 15 13 5 4 17 22 10 11 6 18 3 4 9 2 17 10 4 1 15 10 43 . 6 4 4 17 63 13 Tactical Retreats 165 | . 2 5 1 . 1 31 . . 1 . 5 15 1 11 . . 2 . 3 . . . 4 8 24 . 3 1 2 10 28 7 Traps | -11 -10 -9 -9 -9 -9 -6 -6 -6 -6 -6 -5 -5 -5 -5 -5 -5 -5 -4 -4 -4 -4 -4 -4 -3 -3 -3 -2 -2 -2 -1 -1 -1 ------- Run | Yrd Mat Mat Sto Rec Scr Fac Low Low Zio Dee Pro Fac Was Fac Upp Upp War Pro Fac Ext Cet Arc Hub Res Arm Lab Res Tes Sec Acc Com Ac0 Traps Triggered 30 | . 1 1 . . . 11 . . . . . 1 . . . . 3 . 1 . . . 3 5 . . 1 . 3 . . . Indirectly . | . . . . . . . . . . . . . . . . . . . . . . . . . . . . . . . . . Trap Hack Attempts . | . . . . . . . . . . . . . . . . . . . . . . . . . . . . . . . . . Triggered . | . . . . . . . . . . . . . . . . . . . . . . . . . . . . . . . . . Disarmed . | . . . . . . . . . . . . . . . . . . . . . . . . . . . . . . . . . Reprogrammed 24 | . . 5 1 . . . . . . . . . . . . . . . . . . . . . . . . 18 . . . . Reused 2 | . . 1 . . . . . . . . . . . . . . . . . . . . . . . . . 1 . . . . Traps Extracted . | . . . . . . . . . . . . . . . . . . . . . . . . . . . . . . . . . Installed . | . . . . . . . . . . . . . . . . . . . . . . . . . . . . . . . . . Triggered 2 | . . 1 . . . . . . . . . . . . . . . . . . . . . . . . . 1 . . . . Objects Rigged 9 | . . 2 . . . 7 . . . . . . . . . . . . . . . . . . . . . . . . . . Exploded 4 | . . 1 . . . 3 . . . . . . . . . . . . . . . . . . . . . . . . . . Machines | -11 -10 -9 -9 -9 -9 -6 -6 -6 -6 -6 -5 -5 -5 -5 -5 -5 -5 -4 -4 -4 -4 -4 -4 -3 -3 -3 -2 -2 -2 -1 -1 -1 ---------- Run | Yrd Mat Mat Sto Rec Scr Fac Low Low Zio Dee Pro Fac Was Fac Upp Upp War Pro Fac Ext Cet Arc Hub Res Arm Lab Res Tes Sec Acc Com Ac0 Machines Disabled 682 | . 22 11 29 19 2 78 . 2 . 3 . 28 . 128 2 2 23 3 128 6 1 3 52 21 34 1 5 6 28 13 18 14 Max in Single Turn 24 | . 2 2 2 2 1 24 . 1 . 1 . 6 . 9 2 1 2 3 10 1 1 2 9 3 3 1 1 1 3 3 2 2 Garrison Access 25 | . . . 1 . . 4 . . . . . 1 . 4 . . . . 4 . . . 2 3 . . 2 1 . 3 . . Phase Generator 1 | . . . . . . . . . . . . . . . . . . . . . . . . . . . . . . . 1 . Network Hub 4 | . . . . . . . . . . . . . . . . . . . . . . . 4 . . . . . . . . . Energy Cycler 2 | . . . . . . . . . . . . . . . . . . . . . . . . . 1 . . . . 1 . . Machines Repaired . | . . . . . . . . . . . . . . . . . . . . . . . . . . . . . . . . . Machines Dismantled . | . . . . . . . . . . . . . . . . . . . . . . . . . . . . . . . . . Machines Sabotaged . | . . . . . . . . . . . . . . . . . . . . . . . . . . . . . . . . . Overloaded Fab Kills . | . . . . . . . . . . . . . . . . . . . . . . . . . . . . . . . . . Hacking | -11 -10 -9 -9 -9 -9 -6 -6 -6 -6 -6 -5 -5 -5 -5 -5 -5 -5 -4 -4 -4 -4 -4 -4 -3 -3 -3 -2 -2 -2 -1 -1 -1 --------- Run | Yrd Mat Mat Sto Rec Scr Fac Low Low Zio Dee Pro Fac Was Fac Upp Upp War Pro Fac Ext Cet Arc Hub Res Arm Lab Res Tes Sec Acc Com Ac0 Machines Accessed 237 | . 4 14 13 9 8 36 2 1 . . . 21 . 15 . . 1 1 25 5 2 . 6 16 8 . 15 10 10 7 6 2 Terminals 136 | . 2 11 10 4 . 16 . 1 . . . 10 . 8 . . . 1 14 5 2 . 6 10 2 . 9 8 10 1 6 . Fabricators 25 | . . . . . . 4 . . . . . 3 . 2 . . . . 5 . . . . 2 6 . 3 . . . . . Repair Stations 1 | . . . . . . 1 . . . . . . . . . . . . . . . . . . . . . . . . . . Recycling Units 31 | . 2 2 2 5 . 8 . . . . . 6 . 2 . . . . 2 . . . . . . . 1 . . 1 . . Scanalyzers 14 | . . 1 . . . 3 . . . . . 1 . 1 . . . . 2 . . . . 1 . . . 1 . 4 . . Garrison Access 17 | . . . 1 . . 4 . . . . . 1 . 2 . . . . 2 . . . . 3 . . 2 1 . 1 . . Total Hacks 991 | . 15 56 41 27 38 112 4 5 . . . 62 . 59 . . 3 6 101 25 6 . 34 98 54 . 75 69 43 16 25 17 Successful 600 | . 9 26 26 17 38 75 4 5 . . . 36 . 30 . . 3 6 58 14 5 . 24 42 21 . 39 49 30 11 15 17 Failed 391 | . 6 30 15 10 . 37 . . . . . 26 . 29 . . . . 43 11 1 . 10 56 33 . 36 20 13 5 10 . Catastrophic 67 | . 1 5 1 3 . 2 . . . . . . . 3 . . . . 6 4 . . 2 16 5 . 9 2 6 1 1 . Database Lockouts . | . . . . . . . . . . . . . . . . . . . . . . . . . . . . . . . . . Manual 455 | . 8 40 27 10 . 38 . . 4 . . 39 . 27 . . . . 44 11 . . 16 41 8 . 54 41 29 6 12 . Terminals 702 | . 9 47 34 12 . 67 . 5 . . . 34 . 39 . . . 6 79 25 6 . 34 80 20 . 66 65 43 6 25 . Fabricators 81 | . . . . . . 9 . . . . . 9 . 7 . . . . 12 . . . . 4 34 . 6 . . . . . Repair Stations 2 | . . . . . . 2 . . . . . . . . . . . . . . . . . . . . . . . . . . Recycling Units 83 | . 6 6 5 15 . 19 . . . . . 15 . 7 . . . . 5 . . . . . . . 1 . . 4 . . Scanalyzers 29 | . . 3 . . . 9 . . . . . 2 . 2 . . . . 3 . . . . 2 . . . 3 . 5 . . Garrison Access 32 | . . . 2 . . 6 . . . . . 2 . 4 . . . . 2 . . . . 12 . . 2 1 . 1 . . Terminal Hacks 348 | . 3 12 14 5 38 30 4 5 . . . 6 . 12 . . 3 6 29 12 5 . 21 24 7 . 19 37 26 3 10 17 Record 76 | . . . . . 37 . 3 5 . . . . . . . . 3 6 . . 5 . . . 1 . . . . . . 16 Part Schematic 7 | . . . . . . 2 . . . . . . . . . . . . . . . . 1 1 . . 2 1 . . . . Robot Analysis 4 | . . 1 . . . 3 . . . . . . . . . . . . . . . . . . . . . . . . . . Prototype ID Bank 23 | . . . . . . 2 . . . . . . . . . . . . 5 . . . 3 2 1 . . 5 4 . 1 . Open Door 12 | . . . 3 . . . 1 . . . . . . . . . . . 1 . . . . 1 . . . . 5 . 1 . Level Access Points 7 | . . . . 1 . . . . . . . . . . . . . . . . . . 2 . . . . 2 1 . 1 . Branch Access Points 11 | . 1 1 1 . . 1 . . . . . . . 1 . . . . 1 . . . 1 1 . . 1 1 . 1 . . Machine Index 4 | . . . . . . 1 . . . . . . . . . . . . . . . . . . . . . 1 2 . . . Terminal Index 10 | . . . . . . . . . . . . 1 . 1 . . . . 1 1 . . 1 1 . . 1 . 2 . 1 . Fabricator Index 9 | . . . . . . . . . . . . 1 . 1 . . . . 1 . . . 1 1 . . 1 . 1 1 1 . Repair Station Index 2 | . . . . . . 1 . . . . . . . . . . . . 1 . . . . . . . . . . . . . Recycling Unit Index 1 | . . . . . . . . . . . . . . . . . . . . . . . . . . . . . . . 1 . Scanalyzer Index 4 | . . . . . . . . . . . . . . . . . . . 2 . . . . 1 . . . . . . 1 . Garrison Index 2 | . . . . . . 1 . . . . . . . . . . . . . . . . 1 . . . . . . . . . Alert Level 24 | . . . 2 . . 2 . . . . . 2 . 1 . . . . 1 2 . . 1 3 1 . 2 6 1 . . . Unreport Threat 39 | . . 3 1 1 . 4 . . . . . 1 . 3 . . . . 3 4 . . . 5 3 . 4 7 . . . . Locate Traps 36 | . 1 2 5 . . 5 . . . . . . . . . . . . 4 2 . . 3 3 . . 1 4 4 . 2 . Reprogram Traps 6 | . . 1 1 . . . . . . . . . . . . . . . . . . . . . . . . 4 . . . . Dispatch Records 1 | . . . 1 . . . . . . . . . . . . . . . . . . . . . . . . . . . . . Security Status 1 | . . . . . . . . . . . . . . . . . . . . . . . 1 . . . . . . . . . Extermination Status 3 | . . . . . . . . . . . . . . 1 . . . . 1 . . . 1 . . . . . . . . . Reinforcement Status 1 | . . . . . . . . . . . . . . . . . . . 1 . . . . . . . . . . . . . Recall Investigation 4 | . . . . . . . . . . . . . . 2 . . . . . . . . 1 1 . . . . . . . . Recall Extermination 4 | . . . . . . . . . . . . . . . . . . . 1 . . . 1 . . . 2 . . . . . Recall Reinforcements 9 | . . . . . . 3 . . . . . 1 . . . . . . 1 . . . . 3 . . 1 . . . . . Hauler Manifests 15 | . . 1 . 1 . 2 . . . . . . . 2 . . . . 1 2 . . 1 1 . . 1 1 1 1 . . Registered Components 8 | . . 1 . 1 . 1 . . . . . . . . . . . . 1 . . . . . . . 1 1 2 . . . Registered Prototypes 3 | . . 1 . . . 1 . . . . . . . . . . . . . . . . . . . . . . 1 . . . Zone Layout 19 | . 1 1 . 1 . 1 . . . . . . . . . . . . 3 1 . . 2 . 1 . 2 4 2 . . . Proto ID Catalog 1 | . . . . . 1 . . . . . . . . . . . . . . . . . . . . . . . . . . . Disengage Seal 1 | . . . . . . . . . . . . . . . . . . . . . . . . . . . . . . . 1 . Gate Test 138-A 1 | . . . . . . . . . . . . . . . . . . . . . . . . . . . . . . . . 1 Fabricator Hacks 49 | . . . . . . 8 . . . . . 6 . 5 . . . . 9 . . . . 3 12 . 6 . . . . . Network Status 6 | . . . . . . 2 . . . . . . . 1 . . . . 1 . . . . 1 1 . . . . . . . Load Schematic 22 | . . . . . . 3 . . . . . 3 . 2 . . . . 4 . . . . 1 6 . 3 . . . . . Build 21 | . . . . . . 3 . . . . . 3 . 2 . . . . 4 . . . . 1 5 . 3 . . . . . Repair Station Hacks 2 | . . . . . . 2 . . . . . . . . . . . . . . . . . . . . . . . . . . Scan Component 1 | . . . . . . 1 . . . . . . . . . . . . . . . . . . . . . . . . . . Repair 1 | . . . . . . 1 . . . . . . . . . . . . . . . . . . . . . . . . . . Recycling Unit Hacks 32 | . 2 2 1 6 . 8 . . . . . 6 . 3 . . . . 2 . . . . . . . 1 . . 1 . . Retrieve Components 32 | . 2 2 1 6 . 8 . . . . . 6 . 3 . . . . 2 . . . . . . . 1 . . 1 . . Scanalyzer 22 | . . 3 . . . 5 . . . . . 2 . 1 . . . . 3 . . . . 1 . . . 2 . 5 . . Insert Component 13 | . . . . . . 3 . . . . . 1 . . . . . . 1 . . . . 1 . . . 2 . 5 . . Analyze 3 | . . . . . . 1 . . . . . 1 . . . . . . 1 . . . . . . . . . . . . . Retrieve Study 6 | . . 3 . . . 1 . . . . . . . 1 . . . . 1 . . . . . . . . . . . . . Garrison Access Hacks 16 | . . . 1 . . 3 . . . . . 1 . 2 . . . . 2 . . . . 3 . . 2 1 . 1 . . Seal Access 16 | . . . 1 . . 3 . . . . . 1 . 2 . . . . 2 . . . . 3 . . 2 1 . 1 . . Unauthorized Hacks 129 | . 4 9 10 5 . 19 . . . . . 15 . 7 . . . . 13 2 . . 3 10 2 . 11 9 4 1 5 . Terminals 104 | . 2 8 8 1 . 10 . . . . . 10 . 6 . . . . 13 2 . . 3 10 2 . 11 9 4 . 5 . Assimilate 14 | . . . . . . 1 . . . . . 3 . 1 . . . . 3 . . . . 1 . . 3 1 . . 1 . Botnet 73 | . 1 5 6 1 . 6 . . . . . 6 . 4 . . . . 9 2 . . 2 8 2 . 7 7 3 . 4 . Detonate 5 | . 1 2 1 . . 1 . . . . . . . . . . . . . . . . . . . . . . . . . . Operators 12 | . . 1 1 . . 2 . . . . . 1 . 1 . . . . 1 . . . 1 1 . . 1 1 1 . . . Fabricators . | . . . . . . . . . . . . . . . . . . . . . . . . . . . . . . . . . Repair Stations . | . . . . . . . . . . . . . . . . . . . . . . . . . . . . . . . . . Recycling Units 24 | . 2 1 2 4 . 8 . . . . . 5 . 1 . . . . . . . . . . . . . . . 1 . . Reject 2 | . . . . . . . . . . . . 1 . . . . . . . . . . . . . . . . . 1 . . Tunnel 22 | . 2 1 2 4 . 8 . . . . . 4 . 1 . . . . . . . . . . . . . . . . . . Scanalyzers . | . . . . . . . . . . . . . . . . . . . . . . . . . . . . . . . . . Garrison Access 1 | . . . . . . 1 . . . . . . . . . . . . . . . . . . . . . . . . . . Jam 1 | . . . . . . 1 . . . . . . . . . . . . . . . . . . . . . . . . . . Data Cores Recovered 11 | . . . 1 . . 2 . . . . . 1 . 1 . . . . 1 1 . . 1 1 . . . 1 . . 1 . Used 5 | . . . . . . 2 . . . . . . . . . . . . . 1 . . . 1 . . . 1 . . . . Hacking Detections 159 | . 2 12 9 6 . 27 . 1 . . . 16 . 13 . . . . 19 5 1 . 4 9 7 . 12 4 5 2 5 . Full Trace Events 79 | . 2 12 4 5 . 19 . 1 . . . 5 . 8 . . . . 7 2 . . . 3 6 . 5 . . . . . Feedback Events 2 | . . . . . . 1 . . . . . . . 1 . . . . . . . . . . . . . . . . . . Corruption 1 | . . . . . . 1 . . . . . . . . . . . . . . . . . . . . . . . . . . Hackware Fried 1 | . . . . . . . . . . . . . . 1 . . . . . . . . . . . . . . . . . . Feedback Blocked 1 | . . . . . . . . . . . . . . . . . . . 1 . . . . . . . . . . . . . Robot Schematics Acquired 63 | . . . . . . . . . . . . . . . . . . . . . . . . 54 . . . . 9 . . . Robots Built . | . . . . . . . . . . . . . . . . . . . . . . . . . . . . . . . . . Authchips . | . . . . . . . . . . . . . . . . . . . . . . . . . . . . . . . . . Time . | . . . . . . . . . . . . . . . . . . . . . . . . . . . . . . . . . Total Robot Build Rating . | . . . . . . . . . . . . . . . . . . . . . . . . . . . . . . . . . Part Schematics Acquired 73 | . . . . . 1 33 5 2 1 2 . 1 . . . . . . 1 . . . 1 1 . . 2 5 18 . . . Parts Built 22 | . . . . . . 4 . . . . . 3 . 3 . . . . 3 . . . . 1 5 . 3 . . . . . Authchips . | . . . . . . . . . . . . . . . . . . . . . . . . . . . . . . . . . Time 2431 | . . . . . . 357 . . . . . 440 . 335 . . . . 458 . . . . 93 341 . 407 . . . . . Total Part Build Rating 166 | . . . . . . 22 . . . . . 30 . 20 . . . . 25 . . . . 7 35 . 27 . . . . . Part Studies Acquired 5 | . . 2 . . . 1 . . . . . . . 1 . . . . 1 . . . . . . . . . . . . . Parts Repaired 1 | . . . . . . 1 . . . . . . . . . . . . . . . . . . . . . . . . . . Time 100 | . . . . . . 100 . . . . . . . . . . . . . . . . . . . . . . . . . . Parts Recycled . | . . . . . . . . . . . . . . . . . . . . . . . . . . . . . . . . . Recycled Matter . | . . . . . . . . . . . . . . . . . . . . . . . . . . . . . . . . . Retrieved Matter . | . . . . . . . . . . . . . . . . . . . . . . . . . . . . . . . . . Retrieved Components 123 | . 13 11 1 4 . 47 . . . . . 15 . 3 . . . . 19 . . . . . . . 10 . . . . . Parts Scanalyzed 3 | . . . . . . 1 . . . . . 1 . . . . . . 1 . . . . . . . . . . . . . Part Schematics Acquired 3 | . . . . . . 1 . . . . . 1 . . . . . . 1 . . . . . . . . . . . . . Parts Damaged 1 | . . . . . . . . . . . . . . . . . . . 1 . . . . . . . . . . . . . Bothacking | -11 -10 -9 -9 -9 -9 -6 -6 -6 -6 -6 -5 -5 -5 -5 -5 -5 -5 -4 -4 -4 -4 -4 -4 -3 -3 -3 -2 -2 -2 -1 -1 -1 ------------ Run | Yrd Mat Mat Sto Rec Scr Fac Low Low Zio Dee Pro Fac Was Fac Upp Upp War Pro Fac Ext Cet Arc Hub Res Arm Lab Res Tes Sec Acc Com Ac0 Used RIF Installer . | . . . . . . . . . . . . . . . . . . . . . . . . . . . . . . . . . Robots Hacked . | . . . . . . . . . . . . . . . . . . . . . . . . . . . . . . . . . Non-combat . | . . . . . . . . . . . . . . . . . . . . . . . . . . . . . . . . . Combat . | . . . . . . . . . . . . . . . . . . . . . . . . . . . . . . . . . Robot Hacks Applied . | . . . . . . . . . . . . . . . . . . . . . . . . . . . . . . . . . Relay Couplers Released 5 | . . . . . . 1 . . . . . 1 . 1 . . . . . . . . . 2 . . . . . . . . Machine Destruction 2 | . . . . . . 1 . . . . . . . 1 . . . . . . . . . . . . . . . . . . Programmers 3 | . . . . . . . . . . . . 1 . . . . . . . . . . . 2 . . . . . . . . Fabnet Peak Effective % . | . . . . . . . . . . . . . . . . . . . . . . . . . . . . . . . . . Robots Rewired . | . . . . . . . . . . . . . . . . . . . . . . . . . . . . . . . . . Allies Hacked 1 | . . . . . . . . . . . . . . . . . . . . . . . . . . . 1 . . . . . Hacks Repelled . | . . . . . . . . . . . . . . . . . . . . . . . . . . . . . . . . . Allies | -11 -10 -9 -9 -9 -9 -6 -6 -6 -6 -6 -5 -5 -5 -5 -5 -5 -5 -4 -4 -4 -4 -4 -4 -3 -3 -3 -2 -2 -2 -1 -1 -1 -------- Run | Yrd Mat Mat Sto Rec Scr Fac Low Low Zio Dee Pro Fac Was Fac Upp Upp War Pro Fac Ext Cet Arc Hub Res Arm Lab Res Tes Sec Acc Com Ac0 Total Allies 112 | . . . 12 . 5 1 . . . . . 3 1 1 . . . . 2 1 . . . 1 . . 2 1 . . 82 . Largest Group 48 | . . . 11 11 11 1 . . . . . 1 1 1 . . . . 1 1 . . . 1 . . 1 2 . . 48 . Highest-Rated Group 1111 | . . . 119 119 235 26 . . . . . 26 31 26 . . . . 45 159 . . . 26 . . 45 55 . . 1111 . Highest-Rated Ally 234 | . . . 31 31 47 26 . . . . . 26 31 26 . . . . 45 159 . . . 26 . . 45 45 . . 234 . Total Orders 4 | . . . 2 . 2 . . . . . . . . . . . . . . . . . . . . . . . . . . . STAY 2 | . . . 1 . 1 . . . . . . . . . . . . . . . . . . . . . . . . . . . FOLLOW 2 | . . . 1 . 1 . . . . . . . . . . . . . . . . . . . . . . . . . . . Ally Attacks 423 | . . . 20 7 127 . . . . . . . 6 . . . . . . . . . . . . . . . . . 263 . Total Damage 8996 | . . . 331 84 1793 . . . . . . . 84 . . . . . . . . . . . . . . . . . 6704 . Kills 58 | . . . 8 1 16 . . . . . . . . . . . . . . . . . . . . . . . . . 33 . Allies Corrupted 2 | . . . . . . . . . . . . . . . . . . . . . . . . . . . . . . . 2 . Allies Melted 2 | . . . . . 2 . . . . . . . . . . . . . . . . . . . . . . . . . . . Intel | -11 -10 -9 -9 -9 -9 -6 -6 -6 -6 -6 -5 -5 -5 -5 -5 -5 -5 -4 -4 -4 -4 -4 -4 -3 -3 -3 -2 -2 -2 -1 -1 -1 ------- Run | Yrd Mat Mat Sto Rec Scr Fac Low Low Zio Dee Pro Fac Was Fac Upp Upp War Pro Fac Ext Cet Arc Hub Res Arm Lab Res Tes Sec Acc Com Ac0 Active Infowar (turns) 31195 | . 922 1240 978 548 425 4182 411 397 52 756 1254 2168 65 2180 352 272 2203 1046 2801 295 119 52 1158 1831 1221 85 964 325 620 725 1392 156 Optics 2 | . . . . . . . . . . . . . . . . . 1 . . . . . . 1 . . . . . . . . Sensors 2644 | . . 105 . . . 2539 . . . . . . . . . . . . . . . . . . . . . . . . . . Zeronet 1 | . . . . . . . . . . . . . . . . . . . 1 . . . . . . . . . . . . . Structural 31192 | . 922 1240 978 548 425 4182 411 397 52 756 1254 2168 65 2180 352 272 2202 1046 2799 295 119 52 1158 1831 1221 85 964 325 620 725 1392 156 Jamming 555 | . . . . . . . . . . . . 555 . . . . . . . . . . . . . . . . . . . . ECM 1 | . . . . . . . . . . . . . . . . . . . 1 . . . . . . . . . . . . . Robot Analysis Total 102 | . . 1 . . . 3 . . . . . . . . . . . . . . . . . 98 . . . . . . . . Derelict Logs Recovered 14 | . . . . . . . 1 3 2 . 2 . . . 2 2 . 2 . . . . . . . . . . . . . . Drone Launches . | . . . . . . . . . . . . . . . . . . . . . . . . . . . . . . . . . Drone Recoveries . | . . . . . . . . . . . . . . . . . . . . . . . . . . . . . . . . . Exploration | -11 -10 -9 -9 -9 -9 -6 -6 -6 -6 -6 -5 -5 -5 -5 -5 -5 -5 -4 -4 -4 -4 -4 -4 -3 -3 -3 -2 -2 -2 -1 -1 -1 ------------- Run | Yrd Mat Mat Sto Rec Scr Fac Low Low Zio Dee Pro Fac Was Fac Upp Upp War Pro Fac Ext Cet Arc Hub Res Arm Lab Res Tes Sec Acc Com Ac0 Turns Passed 36293 | 39 1236 1303 978 548 1082 4356 411 397 83 810 2099 2171 65 2196 352 272 2901 1046 2831 295 119 52 1164 1831 1470 92 964 326 663 725 2134 1282 Spaces Moved 55663 | 36 1084 2217 1417 828 2917 6646 1026 1307 342 1548 1339 3037 143 2924 850 830 1837 992 3427 462 194 53 1271 2848 2318 136 1488 1021 1523 1981 3667 3954 Core 5 | 5 . . . . . . . . . . . . . . . . . . . . . . . . . . . . . . . . Treads . | . . . . . . . . . . . . . . . . . . . . . . . . . . . . . . . . . Legs 2 | . . . . . . . . . . . 2 . . . . . . . . . . . . . . . . . . . . . Wheels 127 | 31 96 . . . . . . . . . . . . . . . . . . . . . . . . . . . . . . . Hover . | . . . . . . . . . . . . . . . . . . . . . . . . . . . . . . . . . Flight 55529 | . 988 2217 1417 828 2917 6646 1026 1307 342 1548 1337 3037 143 2924 850 830 1837 992 3427 462 194 53 1271 2848 2318 136 1488 1021 1523 1981 3667 3954 Fastest Speed 5 | 50 34 23 23 23 23 23 23 23 5 5 23 11 24 24 28 28 28 32 31 37 37 37 37 34 18 18 18 18 18 18 18 18 Average Speed 26 | 85 41 25 23 23 23 25 23 23 21 33 48 25 24 27 28 28 28 32 42 37 37 37 37 35 24 19 18 18 18 18 18 18 Slowest Speed 180 | 100 90 34 23 23 23 29 23 23 23 103 180 104 24 28 28 28 114 32 114 37 37 37 37 42 34 98 98 18 18 18 101 98 Overloaded Moves 127 | . . . . . . . . . 27 25 . 75 . . . . . . . . . . . . . . . . . . . . Propulsion Burnouts . | . . . . . . . . . . . . . . . . . . . . . . . . . . . . . . . . . Robots Hopped 129 | . 2 10 14 . 7 22 . . 1 . . 9 . 8 . . . . 5 1 . . . 1 27 . 4 2 3 1 7 5 Potential Cave-ins 7 | . . . . . . . . . . . . . . . . . . . 1 . . . . . . . . . . . . 6 Cave-ins Triggered . | . . . . . . . . . . . . . . . . . . . . . . . . . . . . . . . . . Teleports 2 | . . . . . . . . . . . . . . . . . . . . . . . . . . . . . . . 1 1 Exploration Rate (%) 81 | 3 96 96 96 98 91 98 98 97 51 92 98 72 78 72 97 97 98 98 80 73 70 68 99 78 84 90 37 75 76 65 74 98 Regions Visited 32 Branch Regions 22 Pre-discovered Areas 26 | . 2 1 2 4 . 8 1 . . . . 4 . 1 1 . . 2 . . . . . . . . . . . . . . Known Exits Taken 29 | . 1 1 1 1 1 1 1 1 1 1 1 . . 1 1 1 1 1 1 1 1 1 1 1 1 1 1 1 1 1 1 . Unknown Exits Taken 1 | 1 . . . . . . . . . . . . . . . . . . . . . . . . . . . . . . . . Scrap Searched 23 | . . . . . 4 . 5 3 . . . . . . 3 4 . 4 . . . . . . . . . . . . . . Spaces Dug 1729 | . 7 . . . . 104 1 9 . 38 3 116 . 103 26 . 25 50 206 . 20 . 218 180 22 . 21 53 31 54 364 78 Terrain Destroyed 15604 | . 339 16 . 11 . 437 27 36 . 60 43 442 89 1906 203 172 989 395 2212 313 65 25 1566 1219 729 . 263 87 191 609 1910 1250 Melee . | . . . . . . . . . . . . . . . . . . . . . . . . . . . . . . . . . Projectile 12549 | . . . . . . 109 27 20 . 60 43 243 89 1335 203 172 858 376 1648 313 65 25 909 1166 708 . 263 87 167 533 1910 1220 AOE 3055 | . 339 16 . 11 . 328 . 16 . . . 199 . 571 . . 131 19 564 . . . 657 53 21 . . . 24 76 . 30 Terrain Rammed . | . . . . . . . . . . . . . . . . . . . . . . . . . . . . . . . . . Walls Destroyed . | . . . . . . . . . . . . . . . . . . . . . . . . . . . . . . . . . Machines Disabled . | . . . . . . . . . . . . . . . . . . . . . . . . . . . . . . . . . Actions | -11 -10 -9 -9 -9 -9 -6 -6 -6 -6 -6 -5 -5 -5 -5 -5 -5 -5 -4 -4 -4 -4 -4 -4 -3 -3 -3 -2 -2 -2 -1 -1 -1 --------- Run | Yrd Mat Mat Sto Rec Scr Fac Low Low Zio Dee Pro Fac Was Fac Upp Upp War Pro Fac Ext Cet Arc Hub Res Arm Lab Res Tes Sec Acc Com Ac0 Total 71736 | 41 1696 2640 1794 1097 3246 8633 1119 1358 344 1755 2696 4262 161 3952 924 847 3737 1659 4318 525 223 69 1681 3383 2978 198 2124 1146 1797 2217 4757 4359 Wait 10117 | . 460 174 226 227 271 1357 17 10 . 89 1217 1029 1 577 48 . 1417 624 374 5 18 5 106 134 399 48 548 102 84 41 501 8 Move 55381 | 35 1079 2196 1388 827 2904 6603 1025 1306 339 1547 1338 3019 142 2907 849 829 1836 991 3416 459 193 52 1269 2845 2269 135 1479 1016 1516 1976 3653 3943 Hop 117 | . 2 10 14 . 5 20 . . 1 . . 9 . 8 . . . . 5 1 . . . 1 21 . 4 2 3 1 5 5 Pick Up 189 | . 3 3 3 . 3 16 4 1 1 3 8 6 3 19 . . 12 . 8 . . 1 6 10 7 1 1 2 1 13 20 34 Fast Attach 213 | 6 8 18 4 . 7 28 2 2 . 14 10 12 . 9 . . 13 . 10 2 . . 2 6 4 4 2 1 17 3 15 14 Attach 29 | . . . . . . 5 . . . 1 5 2 . 1 . . 1 . 3 . . 1 . . 2 1 1 . 1 . 2 3 Detach 56 | . . . . . . 7 1 2 . 7 12 3 . 6 . . 2 . 3 . . . 2 2 1 2 1 . 1 1 1 2 Swap 122 | . 2 13 4 . . 27 . 2 1 6 1 2 . 6 . . 10 . 4 1 . . 3 2 7 1 . 2 7 . 16 5 Drop 351 | . 4 24 5 . 8 39 3 3 . 15 22 18 1 19 . . 27 . 17 2 . . 9 13 11 2 2 2 9 15 35 46 Fire 3597 | . 115 148 115 39 33 310 37 20 2 44 47 110 8 268 27 15 378 43 379 42 12 10 202 223 176 4 67 19 99 124 341 140 Melee 1 | . . . . . . 1 . . . . . . . . . . . . . . . . . . . . . . . . . . Ram . | . . . . . . . . . . . . . . . . . . . . . . . . . . . . . . . . . Kick . | . . . . . . . . . . . . . . . . . . . . . . . . . . . . . . . . . Crush . | . . . . . . . . . . . . . . . . . . . . . . . . . . . . . . . . . Escape Stasis 133 | . . . . . . 30 . . . . . . . . . . . . . . . . 11 44 . . . . 45 2 1 . Rewire . | . . . . . . . . . . . . . . . . . . . . . . . . . . . . . . . . . Trap . | . . . . . . . . . . . . . . . . . . . . . . . . . . . . . . . . . Miscellaneous 1430 | . 23 54 35 4 15 190 30 12 . 29 36 52 6 132 . 3 41 1 99 13 . . 71 103 81 . 19 . 14 41 167 159 Route ------- -11/Scrapyard -10/Materials (discovered 6 exits: *Mat x3 / *Min x2 / [*Sub]) -9/Materials (discovered 6 exits: *Mat x3 / *Min x2 / *Sto) -9/Storage (discovered 2 exits: *Mat / *Rec) -9/Recycling (discovered 2 exits: *Fac / *Scr) -9/Scraptown (discovered 2 exits: *Fac x2) -6/Factory (discovered 5 exits: *Fac x3 / *Low x2) -6/Lower Caves -6/Lower Caves (discovered 2 exits: *Fac / *Zio) -6/Zion (discovered 2 exits: *Dee / *Pro) -6/Deep Caves -5/Proximity Caves -5/Factory (discovered 2 exits: *Fac x2) -5/Waste -5/Factory (discovered 5 exits: *Fac x3 / *Upp x2) -5/Upper Caves -5/Upper Caves (discovered 2 exits: *Fac / *War) -5/Warlord -4/Proximity Caves -4/Factory (discovered 7 exits: *Res x3 / *Upp x2 / *Ext x2) -4/Extension (discovered 2 exits: *Res / *Cet) -4/Cetus (discovered 2 exits: *Res / *Arc) -4/Archives -4/Hub_04(d) (discovered 4 exits: *Res x4) -3/Research (discovered 6 exits: *Res x3 / *Arm / *Qua x2) -3/Armory (discovered 2 exits: *Res / *Lab) -3/Lab -2/Research (discovered 3 exits: *Acc / *Tes x2) -2/Testing (discovered 3 exits: *Acc / *Sec / *Frg) -2/Section 7 -1/Access (discovered 2 exits: *Sur / *Com) -1/Command (discovered 3 exits: Sur x2 / *Ac0) -1/Access_0 To Fleet Rendezvous History --------- Turn | Location | Event 1 | -11/Scrapyard | Upgraded with Propulsion slot (x1) 1 | -11/Scrapyard | Upgraded with Utility slot (x1) 1 | -11/Scrapyard | Upgraded with Weapon slot (x2) 8 | -11/Scrapyard | Discovered new exit (range 15) 40 | -11/Scrapyard | Entered Materials 127 | -10/Materials | Discovered new exit (range 8) 248 | -10/Materials | Discovered new exit (range 7) 304 | -10/Materials | Build established: Gunner 322 | -10/Materials | Discovered new exit (range 15) 327 | -10/Materials | Identified exit to Materials 396 | -10/Materials | Identified exit to Mines 404 | -10/Materials | Reached level 2 409 | -10/Materials | Upgraded with Propulsion slot (x1) 409 | -10/Materials | Upgraded with Utility slot (x1) 500 | -10/Materials | Discovered exit to Materials (range 6) 540 | -10/Materials | Derelicts attacked the area 1054 | -10/Materials | Reached level 3 1200 | -10/Materials | Discovered new exit (range 12) 1270 | -10/Materials | Reached level 4 1276 | -10/Materials | Entered another Materials area 1278 | -9/Materials | Reached level 5 1317 | -9/Materials | Discovered new exit (range 12) 1319 | -9/Materials | Upgraded with Propulsion slot (x1) 1319 | -9/Materials | Upgraded with Utility slot (x2) 1363 | -9/Materials | Core integrity fell below 50% 1405 | -9/Materials | Core integrity fell below 20% 1461 | -9/Materials | Build established: Scavenger-Gunner 1495 | -9/Materials | Identified exit to Mines 1495 | -9/Materials | Identified exit to Storage 1535 | -9/Materials | Discovered new exit (range 11) 1537 | -9/Materials | Identified exit to Materials 1580 | -9/Materials | Reached level 6 1634 | -9/Materials | Discovered exit to Materials (range 3) 1676 | -9/Materials | First assault squad dispatched 1768 | -9/Materials | Reached level 7 1872 | -9/Materials | Discovered exit to Materials (range 9) 1912 | -9/Materials | Destroyed 7 combat bots 1926 | -9/Materials | Build established: Scavenger-Sprinter 1940 | -9/Materials | Reached level 8 2106 | -9/Materials | Upgraded with Propulsion slot (x1) 2312 | -9/Materials | Reached level 9 2399 | -9/Materials | Sterilization system engaged 2399 | -9/Materials | Non-combat units ordered to evacuate 2404 | -9/Materials | Upgraded with Utility slot (x1) 2499 | -9/Materials | Combat units ordered to evacuate 2579 | -9/Materials | Entered Storage 2635 | -9/Storage | Reached level 10 2661 | -9/Storage | Build established: Sprinter 2667 | -9/Storage | Garrison activated, responded to threat 2728 | -9/Storage | Identified exit to Recycling 2731 | -9/Storage | Destroyed 19 combat bots 2732 | -9/Storage | Discovered exit to Materials (range 16) 2838 | -9/Storage | Used back door to open Recycling access 2935 | -9/Storage | Met a pair of Derelict thieves 2979 | -9/Storage | First assault squad dispatched 3097 | -9/Storage | Reached level 11 3219 | -9/Storage | Assisted by bots powering up and referring to "LRC-V3" 3521 | -9/Storage | Build established: Commander-Sprinter 3557 | -9/Storage | Entered Recycling 3557 | -9/Recycling | Accompanied by 11 allies 3768 | -9/Recycling | Discovered new exit (range 13) 3781 | -9/Recycling | Identified exit to Factory 3817 | -9/Recycling | Reached level 12 3904 | -9/Recycling | Scanned before Scraplab entrance 4026 | -9/Recycling | Discovered new exit (range 11) 4027 | -9/Recycling | Entered Scraplab 4029 | -9/Recycling | Identified exit to Scraptown 4105 | -9/Recycling | Entered Scraptown 4105 | -9/Scraptown | Accompanied by 11 allies 4121 | -9/Scraptown | Heard Great Nut preacher, LISTEN AND RECITE! 4147 | -9/Scraptown | Visited IN-MT5's Study 4151 | -9/Scraptown | Visited CPS Storage 4165 | -9/Scraptown | Discovered new exit (range 7) 4167 | -9/Scraptown | Identified exit to Factory 4209 | -9/Scraptown | Visited Awakened 4214 | -9/Scraptown | Visited Spacefarers 4259 | -9/Scraptown | Visited Cyclists 4266 | -9/Scraptown | Visited Shadow of the Wyrm 4343 | -9/Scraptown | Visited UFD Registry 4343 | -9/Scraptown | Registered with UFD as "Biotube" 4355 | -9/Scraptown | Received an X-ray algorithm 4356 | -9/Scraptown | Visited Botcube Research 4363 | -9/Scraptown | Visited Observation Area 4372 | -9/Scraptown | Visited LU-1G1's Boring Crew 4404 | -9/Scraptown | Visited Chapter 10 4407 | -9/Scraptown | Visited Scrapoid Pod Storage 4410 | -9/Scraptown | Found Scrapoid Pod 4495 | -9/Scraptown | Visited Supply Room 4527 | -9/Scraptown | Visited Modified Component R&D 4550 | -9/Scraptown | Discovered exit to Factory (range 5) 4558 | -9/Scraptown | Visited Junk Repository 4568 | -9/Scraptown | Visited Sword Containment 4574 | -9/Scraptown | Visited Science Guys 4595 | -9/Scraptown | Entered Cyclist Reading Room 4625 | -9/Scraptown | Visited The Evicted 4748 | -9/Scraptown | Met Optimus 4748 | -9/Scraptown | Accepted into 0bPrime 4930 | -9/Scraptown | Civil war broke out across Scraptown 5017 | -9/Scraptown | Optimus destroyed in the chaos of civil war 5033 | -9/Scraptown | Lost 15 allies 5038 | -9/Scraptown | Scrapoid Pod released 09S05-D (x5) 5065 | -9/Scraptown | Destroyed 8 combat bots 5122 | -9/Scraptown | Upgraded with Utility slot (x1) 5131 | -9/Scraptown | Lost 4 allies 5147 | -9/Scraptown | Attacked by Scraptown defenders 5164 | -9/Scraptown | Destroyed 8 combat bots 5183 | -9/Scraptown | Lost 4 allies 5187 | -9/Scraptown | Entered Factory 5189 | -6/Factory | Reached level 13 5402 | -6/Factory | Tech Extrapolator generated special schematic: Deep Structural Scanner 5489 | -6/Factory | Reached level 14 5696 | -6/Factory | Build established: Scout 5832 | -6/Factory | Reached level 15 5927 | -6/Factory | Upgraded with Utility slot (x1) 5989 | -6/Factory | Discovered new exit (range 16) 5999 | -6/Factory | Identified exit to Factory 6038 | -6/Factory | Build established: Hacker-Scout 6156 | -6/Factory | Tech Extrapolator generated special schematic: Machine Rigger 6178 | -6/Factory | Reached level 16 6205 | -6/Factory | Discovered exit to Factory (range 12) 6443 | -6/Factory | Reached level 17 6450 | -6/Factory | Upgraded with Utility slot (x1) 6464 | -6/Factory | Destroyed 7 combat bots 6587 | -6/Factory | First assault squad dispatched 6779 | -6/Factory | Discovered new exit (range 14) 6789 | -6/Factory | Identified exit to Lower Caves 6817 | -6/Factory | Fabricated Hyp. Gauss Cannon? 6850 | -6/Factory | Reached level 18 7013 | -6/Factory | Repaired Broken Cld. Cesium-ion Thruster 7054 | -6/Factory | Discovered exit to Factory (range 12) 7784 | -6/Factory | Reached level 19 7800 | -6/Factory | Spotted B-75 Beast 7806 | -6/Factory | Destroyed B-75 Beast 8160 | -6/Factory | Fabricated Cld. Cesium-ion Thruster? 8464 | -6/Factory | Fabricated Cld. Cesium-ion Thruster? 8501 | -6/Factory | Upgraded with Utility slot (x1) 8627 | -6/Factory | Tech Extrapolator generated special schematic: Mak. Core Shielding 8654 | -6/Factory | High security lockdown imminent 8734 | -6/Factory | High security lockdown engaged 8796 | -6/Factory | Reached level 20 9474 | -6/Factory | Reached level 21 9495 | -6/Factory | Destroyed 8 combat bots 9543 | -6/Factory | Entered Lower Caves 9544 | -6/Lower Caves | Encountered a Warlord checkpoint 9553 | -6/Lower Caves | Learned location of 1 exit from Research 9564 | -6/Lower Caves | Learned location of Zion (-6) 9672 | -6/Lower Caves | Discovered new exit (range 5) 9673 | -6/Lower Caves | Identified exit to Lower Caves 9707 | -6/Lower Caves | Attracted the attention of an 0b10 outpost 9767 | -6/Lower Caves | Destroyed 9 combat bots 9954 | -6/Lower Caves | Entered another Lower Caves area 9959 | -6/Lower Caves | Discovered exit to Factory (range 12) 9992 | -6/Lower Caves | Encountered a Warlord checkpoint 10044 | -6/Lower Caves | Learned Factory security intel 10061 | -6/Lower Caves | Discovered new exit (range 16) 10064 | -6/Lower Caves | Identified exit to Zion 10119 | -6/Lower Caves | Attracted the attention of an 0b10 checkpoint 10134 | -6/Lower Caves | Learned Factory stockpile data 10265 | -6/Lower Caves | Learned location of 2 exits from Lower Caves 10265 | -6/Lower Caves | Learned Extension trap positions 10265 | -6/Lower Caves | Learned Armory trap positions 10268 | -6/Lower Caves | Destroyed 7 combat bots 10351 | -6/Lower Caves | Entered Zion 10355 | -6/Zion | Identified exit to Proximity Caves 10364 | -6/Zion | Learned Factory trap positions 10377 | -6/Zion | Visited the Megawrench Repair Shop 10377 | -6/Zion | Megawrench repaired 3 parts 10389 | -6/Zion | Attacked by Zionites 10389 | -6/Zion | Spotted NU-DIC(B) 10389 | -6/Zion | Spotted 0Z-R1U(B) 10404 | -6/Zion | Destroyed Imprinter 10405 | -6/Zion | Extracted access codes from Imprinter's data core 10430 | -6/Zion | Opened final containment barrier to the Deep Caves 10433 | -6/Zion | Discovered new exit (range 3) 10433 | -6/Zion | Saw the warning signs outside the Deep Caves entrance 10434 | -6/Zion | Identified exit to Deep Caves 10434 | -6/Zion | Entered Deep Caves 10602 | -6/Deep Caves | Found Prototype Protection 10602 | -6/Deep Caves | Identified Zio. Weapon Casing 10622 | -6/Deep Caves | Discovered new exit (range 16) 10629 | -6/Deep Caves | Identified exit to Proximity Caves 10708 | -6/Deep Caves | Spotted AG-37454 10729 | -6/Deep Caves | Build established: Scavenger-Scout 10759 | -6/Deep Caves | Spotted AG-61746 10844 | -6/Deep Caves | Z-Facility disabled 10930 | -6/Deep Caves | Tech Extrapolator generated special schematic: Hyp. Alpha Cannon 10936 | -6/Deep Caves | Found Prototype Protection 10936 | -6/Deep Caves | Identified Zio. Heavy Carapace 11013 | -6/Deep Caves | Found Zio. Heavy Carapace 11230 | -6/Deep Caves | Exposed GOLEM chamber 11231 | -6/Deep Caves | Triggered Deep Caves wall 11233 | -6/Deep Caves | Found GOLEM Unit 11244 | -6/Deep Caves | Entered Proximity Caves 11246 | -5/Proximity Caves | Reached level 22 11520 | -5/Proximity Caves | Build established: Scavenger-Skirmisher 11583 | -5/Proximity Caves | Learned Factory interactive machine intel 11747 | -5/Proximity Caves | Discovered exit to Factory (range 13) 12005 | -5/Proximity Caves | Upgraded with Power slot (x1) 12258 | -5/Proximity Caves | Build established: Golem 12877 | -5/Proximity Caves | Attracted the attention of an 0b10 outpost 12961 | -5/Proximity Caves | Attracted the attention of an 0b10 checkpoint 13134 | -5/Proximity Caves | Build established: Scout 13173 | -5/Proximity Caves | Spotted B-75 Beast 13178 | -5/Proximity Caves | Destroyed B-75 Beast 13330 | -5/Proximity Caves | Learned Factory trap positions 13343 | -5/Proximity Caves | Entered Factory 13344 | -5/Factory | Loaded intel: 106 trap records 13347 | -5/Factory | Loaded intel: 50 interactive machine locations 13564 | -5/Factory | Reached level 23 13718 | -5/Factory | Build established: Infiltrator-Scout 13790 | -5/Factory | Discovered new exit (range 5) 13791 | -5/Factory | Identified exit to Factory 13943 | -5/Factory | Search patrols dispatched 14243 | -5/Factory | Search patrols dispatched 14278 | -5/Factory | Build established: Hacker-Scout 14654 | -5/Factory | Destroyed 7 combat bots 14814 | -5/Factory | Cargo convoy interrupted 14836 | -5/Factory | Spotted B-75 Beast 14858 | -5/Factory | Discovered exit to Factory (range 12) 14902 | -5/Factory | Destroyed 8 combat bots 14923 | -5/Factory | Fabricated Hyp. Alpha Cannon? 14994 | -5/Factory | Fabricated Hyp. Alpha Cannon? 15098 | -5/Factory | Fabricated Hyp. Alpha Cannon? 15143 | -5/Factory | First assault squad dispatched 15240 | -5/Factory | Unchained authorized (QV-33N) 15514 | -5/Factory | Manually triggered Chute Trap 15514 | -5/Factory | Sucked down chute 15514 | -5/Factory | Entered Waste 15515 | -5/Waste | Met a frightened Derelict 15516 | -5/Waste | Reached level 24 15520 | -5/Waste | Spotted C-40 Crusher 15521 | -5/Waste | Spotted C-40 Crusher 15523 | -5/Waste | Spotted C-40 Crusher 15527 | -5/Waste | Spotted C-40 Crusher 15529 | -5/Waste | Spotted C-40 Crusher 15529 | -5/Waste | Discovered new exit (range 12) 15529 | -5/Waste | Spotted C-40 Crusher 15532 | -5/Waste | Destroyed C-40 Crusher 15535 | -5/Waste | Destroyed C-40 Crusher 15538 | -5/Waste | Destroyed C-40 Crusher 15544 | -5/Waste | Destroyed C-40 Crusher 15563 | -5/Waste | Destroyed C-40 Crusher 15571 | -5/Waste | Destroyed C-40 Crusher 15579 | -5/Waste | Identified exit to Factory 15579 | -5/Waste | Entered Factory 15580 | -5/Factory | Loaded intel: 122 trap records 15659 | -5/Factory | Upgraded with Utility slot (x1) 15725 | -5/Factory | System Shield fried by hacking feedback 15769 | -5/Factory | Spotted B-75 Beast 15782 | -5/Factory | Unchained authorized (QV-33N) 15811 | -5/Factory | Destroyed B-75 Beast 15829 | -5/Factory | Found Prototype Processor 15829 | -5/Factory | Identified Exp. Targeting Computer 15879 | -5/Factory | First assault squad dispatched 16001 | -5/Factory | Discovered exit to Factory (range 15) 16012 | -5/Factory | Identified exit to Upper Caves 16030 | -5/Factory | Fabricated Hyp. Alpha Cannon? 16234 | -5/Factory | Fabricated Lgt. Fission Core (x2) 16447 | -5/Factory | Destroyed 9 combat bots 16483 | -5/Factory | Destroyed 7 combat bots 16599 | -5/Factory | Core integrity fell below 50% 16630 | -5/Factory | Destroyed 19 combat bots 16733 | -5/Factory | Destroyed 7 combat bots 16749 | -5/Factory | High security lockdown imminent 16789 | -5/Factory | Destroyed 11 combat bots 16799 | -5/Factory | Reached level 25 16829 | -5/Factory | High security lockdown engaged 16873 | -5/Factory | Destroyed 7 combat bots 16923 | -5/Factory | Destroyed 10 combat bots 17031 | -5/Factory | Destroyed 15 combat bots 17094 | -5/Factory | Discovered exit to Factory (range 15) 17112 | -5/Factory | Destroyed 12 combat bots 17167 | -5/Factory | Destroyed 9 combat bots 17272 | -5/Factory | Destroyed 12 combat bots 17275 | -5/Factory | Discovered exit to Factory (range 14) 17404 | -5/Factory | Reached level 26 17488 | -5/Factory | Destroyed 20 combat bots 17522 | -5/Factory | Sterilization system engaged 17522 | -5/Factory | Non-combat units ordered to evacuate 17622 | -5/Factory | Combat units ordered to evacuate 17678 | -5/Factory | Destroyed 17 combat bots 17743 | -5/Factory | Destroyed 9 combat bots 17775 | -5/Factory | Entered Upper Caves 17846 | -5/Upper Caves | Destroyed 16 combat bots 17955 | -5/Upper Caves | Discovered new exit (range 15) 17955 | -5/Upper Caves | Learned Factory garrison access intel 17962 | -5/Upper Caves | Identified exit to Upper Caves 17969 | -5/Upper Caves | Destroyed 10 combat bots 18127 | -5/Upper Caves | Entered another Upper Caves area 18144 | -5/Upper Caves | Discovered exit to Factory (range 10) 18188 | -5/Upper Caves | Learned Factory terminal intel 18195 | -5/Upper Caves | Learned 4 Factory zone layouts 18311 | -5/Upper Caves | Encountered a Warlord checkpoint 18320 | -5/Upper Caves | Discovered new exit (range 16) 18324 | -5/Upper Caves | Identified exit to Warlord 18377 | -5/Upper Caves | Destroyed 11 combat bots 18399 | -5/Upper Caves | Entered Warlord 18418 | -5/Warlord | Discovered new exit (range 9) 18421 | -5/Warlord | Identified exit to Proximity Caves 18585 | -5/Warlord | Attacked by Warlord forces 18595 | -5/Warlord | Warlord's base attacked by MAIN.C 18615 | -5/Warlord | Destroyed IW-276(g) 18647 | -5/Warlord | Destroyed XA-MW7(g) 18789 | -5/Warlord | Destroyed 17 combat bots 18789 | -5/Warlord | Destroyed L6-UDW(K) 18794 | -5/Warlord | Destroyed IZ-IWH(K) 18899 | -5/Warlord | Destroyed Warlord 18945 | -5/Warlord | Warlord forces counterattacked 18966 | -5/Warlord | Destroyed 7 combat bots 18992 | -5/Warlord | Spotted GR-LLN(g) 18993 | -5/Warlord | Destroyed GR-LLN(g) 19066 | -5/Warlord | Destroyed 12 combat bots 19133 | -5/Warlord | Spotted Executioner 19134 | -5/Warlord | Destroyed Executioner 19241 | -5/Warlord | Destroyed 7 combat bots 19270 | -5/Warlord | Warlord base infiltrated, sounded retreat 19325 | -5/Warlord | Destroyed Executioner 19332 | -5/Warlord | Destroyed Executioner 19389 | -5/Warlord | Destroyed 24 combat bots 19406 | -5/Warlord | Destroyed Executioner 19461 | -5/Warlord | Destroyed Executioner 19485 | -5/Warlord | Destroyed 14 combat bots 19548 | -5/Warlord | Found Prototype Processor 19548 | -5/Warlord | Identified Exp. Melee Analysis Suite 19626 | -5/Warlord | Destroyed Executioner 19639 | -5/Warlord | Found Prototype Device 19639 | -5/Warlord | Identified Adv. Kinecellerator 19642 | -5/Warlord | Found Prototype Processor 19642 | -5/Warlord | Identified Exp. Core Analyzer 19672 | -5/Warlord | Reached level 27 19715 | -5/Warlord | Destroyed 8 combat bots 19729 | -5/Warlord | Destroyed Striker 19756 | -5/Warlord | Destroyed Striker 19796 | -5/Warlord | Destroyed 12 combat bots 19833 | -5/Warlord | Destroyed Executioner 19876 | -5/Warlord | Destroyed Striker 19919 | -5/Warlord | Destroyed 14 combat bots 19936 | -5/Warlord | Destroyed Striker 20097 | -5/Warlord | Destroyed Striker 20118 | -5/Warlord | Destroyed 33 combat bots 20165 | -5/Warlord | Destroyed Executioner 20223 | -5/Warlord | Spotted Striker 20223 | -5/Warlord | Destroyed Striker 20267 | -5/Warlord | Destroyed 19 combat bots 20297 | -5/Warlord | Destroyed Executioner 20343 | -5/Warlord | Destroyed 10 combat bots 20412 | -5/Warlord | Destroyed Executioner 20434 | -5/Warlord | Destroyed Executioner 20551 | -5/Warlord | Destroyed 27 combat bots 20581 | -5/Warlord | Found Prototype Hackware 20581 | -5/Warlord | Identified Ghost Barrier 20589 | -5/Warlord | Found Prototype Reactor 20589 | -5/Warlord | Identified Vortex Chain Reactor 20618 | -5/Warlord | Destroyed Executioner 20633 | -5/Warlord | Destroyed Striker 20654 | -5/Warlord | Destroyed 11 combat bots 20883 | -5/Warlord | Build established: Hacker-Sprinter 21127 | -5/Warlord | Destroyed Fake God Mode 21300 | -5/Warlord | Entered Proximity Caves 21373 | -4/Proximity Caves | Destroyed 8 combat bots 21487 | -4/Proximity Caves | Discovered exit to Factory (range 6) 21495 | -4/Proximity Caves | Destroyed 17 combat bots 21535 | -4/Proximity Caves | Build established: Hacker-Scout 21567 | -4/Proximity Caves | Learned Factory terminal intel 21567 | -4/Proximity Caves | Learned Armory terminal intel 21579 | -4/Proximity Caves | Destroyed 7 combat bots 21596 | -4/Proximity Caves | Learned Research stockpile data 22346 | -4/Proximity Caves | Entered Factory 22348 | -4/Factory | Loaded intel: 28 terminal locations 22348 | -4/Factory | Reached level 28 22349 | -4/Factory | Loaded intel: 4 garrison access locations 22510 | -4/Factory | Unchained authorized (QV-33N) 22666 | -4/Factory | Discovered new exit (range 15) 22671 | -4/Factory | Identified exit to Research 22798 | -4/Factory | Destroyed 9 combat bots 22809 | -4/Factory | Destroyed QV-33N 22820 | -4/Factory | Found Prototype Device 22820 | -4/Factory | Identified QV-33N's Drone Shield 22823 | -4/Factory | Found Prototype Device 22823 | -4/Factory | Identified Zeronet Interface 22825 | -4/Factory | Found Prototype Device 22825 | -4/Factory | Identified Exp. Phase Shifter 22846 | -4/Factory | First assault squad dispatched 22950 | -4/Factory | Identified exit to Upper Caves 22950 | -4/Factory | Identified exit to Extension 22953 | -4/Factory | Unchained authorized (GL-D0S) 23281 | -4/Factory | Build established: Hacker-Skirmisher 23520 | -4/Factory | Destroyed 13 combat bots 23576 | -4/Factory | Fabricated Adv. Particle Accelerator? 23742 | -4/Factory | Build established: Hacker-Scout 23750 | -4/Factory | Spotted B-86 Titan 23828 | -4/Factory | Discovered exit to Research (range 17) 23875 | -4/Factory | Fabricated Impulse Thruster Array? 23884 | -4/Factory | Fabricated Impulse Thruster Array? 24002 | -4/Factory | Destroyed B-86 Titan 24047 | -4/Factory | Destroyed 7 combat bots 24066 | -4/Factory | Spotted B-86 Titan 24106 | -4/Factory | Destroyed B-86 Titan 24201 | -4/Factory | High security lockdown imminent 24241 | -4/Factory | Reached level 29 24281 | -4/Factory | High security lockdown engaged 24281 | -4/Factory | Upgraded with Utility slot (x1) 24329 | -4/Factory | Destroyed 23 combat bots 24417 | -4/Factory | Destroyed 12 combat bots 24471 | -4/Factory | Destroyed 10 combat bots 24613 | -4/Factory | Destroyed 9 combat bots 24712 | -4/Factory | Sterilization system engaged 24712 | -4/Factory | Non-combat units ordered to evacuate 24812 | -4/Factory | Combat units ordered to evacuate 24813 | -4/Factory | Core integrity fell below 50% 24836 | -4/Factory | Destroyed 63 combat bots 24891 | -4/Factory | Destroyed 12 combat bots 24982 | -4/Factory | Discovered exit to Research (range 11) 25012 | -4/Factory | Ambient heat levels rising (+10) 25162 | -4/Factory | Ambient heat levels rising (+10) 25177 | -4/Factory | Entered Extension 25178 | -4/Extension | Loaded intel: 26 trap records 25203 | -4/Extension | Rescued A7 25222 | -4/Extension | Murdered A7 25224 | -4/Extension | Extracted ID and sensor layout for unrecognized location from A7's data core 25293 | -4/Extension | Destroyed B-86 Titan 25305 | -4/Extension | Destroyed B-86 Titan 25326 | -4/Extension | Destroyed 7 combat bots 25375 | -4/Extension | Unchained authorized (CL-0N3) 25427 | -4/Extension | First assault squad dispatched 25427 | -4/Extension | Reached level 30 25453 | -4/Extension | Discovered exit to Research (range 10) 25454 | -4/Extension | Discovered new exit (range 6) 25461 | -4/Extension | Disrupted transfer network 25463 | -4/Extension | High security lockdown imminent 25469 | -4/Extension | Identified exit to Cetus 25472 | -4/Extension | Entered Cetus 25479 | -4/Cetus | Destroyed Cetus Guard 25482 | -4/Cetus | Destroyed Cetus Guard 25484 | -4/Cetus | Destroyed Cetus Guard 25486 | -4/Cetus | Destroyed Cetus Guard 25507 | -4/Cetus | Destroyed 35 combat bots 25520 | -4/Cetus | Found a strange terminal 25531 | -4/Cetus | Discovered new exit (range 16) 25536 | -4/Cetus | Identified exit to Archives 25545 | -4/Cetus | Destroyed Cetus Guard 25545 | -4/Cetus | Destroyed Cetus Guard 25548 | -4/Cetus | Destroyed Cetus Guard 25548 | -4/Cetus | Destroyed Cetus Guard 25554 | -4/Cetus | Discovered exit to Research (range 15) 25570 | -4/Cetus | Met Revision 17 25575 | -4/Cetus | Murdered Revision 17 25591 | -4/Cetus | Entered Archives 25635 | -4/Archives | Discovered new exit (range 16) 25641 | -4/Archives | Identified exit to Hub_04(d) 25643 | -4/Archives | Entered Hub_04(d) 25701 | -4/Hub_04(d) | Discovered exit to Research (range 11) 25714 | -4/Hub_04(d) | Garrison activated, responded to threat 25766 | -4/Hub_04(d) | Destroyed 13 combat bots 25862 | -4/Hub_04(d) | Unchained authorized (CL-0N3) 25892 | -4/Hub_04(d) | Network Hub disabled 25893 | -4/Hub_04(d) | First assault squad dispatched 25895 | -4/Hub_04(d) | Spotted Lightning 25907 | -4/Hub_04(d) | Network Hub disabled 25932 | -4/Hub_04(d) | Spotted Lightning 25935 | -4/Hub_04(d) | Spotted Lightning 25969 | -4/Hub_04(d) | Destroyed Lightning 25969 | -4/Hub_04(d) | Destroyed Lightning 25974 | -4/Hub_04(d) | Destroyed Lightning 25995 | -4/Hub_04(d) | Destroyed 23 combat bots 26041 | -4/Hub_04(d) | High security lockdown imminent 26097 | -4/Hub_04(d) | Spotted Lightning 26099 | -4/Hub_04(d) | Destroyed Lightning 26101 | -4/Hub_04(d) | Spotted Lightning 26102 | -4/Hub_04(d) | Destroyed Lightning 26104 | -4/Hub_04(d) | Spotted Lightning 26107 | -4/Hub_04(d) | Destroyed Lightning 26121 | -4/Hub_04(d) | High security lockdown engaged 26128 | -4/Hub_04(d) | Destroyed 13 combat bots 26130 | -4/Hub_04(d) | Destroyed B-86 Titan 26191 | -4/Hub_04(d) | Destroyed S7 Guard 26243 | -4/Hub_04(d) | Destroyed 24 combat bots 26373 | -4/Hub_04(d) | Destroyed 31 combat bots 26404 | -4/Hub_04(d) | Found Exp. Phase Shifter 26432 | -4/Hub_04(d) | Destroyed 7 combat bots 26475 | -4/Hub_04(d) | Sterilization system engaged 26475 | -4/Hub_04(d) | Non-combat units ordered to evacuate 26495 | -4/Hub_04(d) | Destroyed 14 combat bots 26575 | -4/Hub_04(d) | Combat units ordered to evacuate 26581 | -4/Hub_04(d) | Destroyed 8 combat bots 26594 | -4/Hub_04(d) | Found Prototype Device 26594 | -4/Hub_04(d) | Identified Exp. EM Shield 26722 | -4/Hub_04(d) | Network Hub disabled 26775 | -4/Hub_04(d) | Ambient heat levels rising (+10) 26787 | -4/Hub_04(d) | Network Hub disabled 26807 | -4/Hub_04(d) | Entered Research 26808 | -3/Research | Identified exit to Armory 26809 | -3/Research | Identified exit to Research 26976 | -3/Research | Reached level 31 26986 | -3/Research | Unchained authorized (CL-0N3) 27057 | -3/Research | First assault squad dispatched 27118 | -3/Research | K-01 Serf reconstituted as Access Guard 27118 | -3/Research | Spotted Access Guard 27152 | -3/Research | Discovered new exit (range 9) 27154 | -3/Research | Identified exit to Quarantine 27211 | -3/Research | Found Prototype Processor 27258 | -3/Research | Spotted B-86 Titan 27361 | -3/Research | Identified Exp. Signal Interpreter 27366 | -3/Research | Found Prototype Processor 27366 | -3/Research | Identified Spectral Analyzer 27437 | -3/Research | Fabricated Diametric Drive? 27461 | -3/Research | Discovered exit to Research (range 13) 27510 | -3/Research | Destroyed 7 combat bots 27577 | -3/Research | U-05 Engineer reconstituted as Alpha 7 27577 | -3/Research | Spotted Alpha 7 27594 | -3/Research | Destroyed Alpha 7 27594 | -3/Research | Alpha 7 reconstituted as CL-0N3 27628 | -3/Research | High security lockdown imminent 27674 | -3/Research | Destroyed 8 combat bots 27708 | -3/Research | High security lockdown engaged 27729 | -3/Research | Destroyed B-86 Titan 27795 | -3/Research | Destroyed 13 combat bots 27833 | -3/Research | Destroyed Combat Programmer 27837 | -3/Research | Destroyed CL-0N3 27841 | -3/Research | Extracted schematics, analyses from CL-0N3's data core 27889 | -3/Research | Destroyed 19 combat bots 27980 | -3/Research | Destroyed 16 combat bots 28008 | -3/Research | Spotted Executioner 28012 | -3/Research | Destroyed Executioner 28035 | -3/Research | Destroyed 11 combat bots 28077 | -3/Research | Reached level 32 28101 | -3/Research | Destroyed 8 combat bots 28118 | -3/Research | Destroyed B-86 Titan 28204 | -3/Research | Spotted Executioner 28204 | -3/Research | Spotted Executioner 28225 | -3/Research | Destroyed Executioner 28225 | -3/Research | Destroyed Executioner 28252 | -3/Research | Destroyed 14 combat bots 28283 | -3/Research | Scanned by Researcher 28285 | -3/Research | Destroyed Investigator 28336 | -3/Research | Sterilization system engaged 28336 | -3/Research | Non-combat units ordered to evacuate 28356 | -3/Research | Destroyed 25 combat bots 28429 | -3/Research | Destroyed 10 combat bots 28436 | -3/Research | Combat units ordered to evacuate 28458 | -3/Research | Spotted Investigator 28459 | -3/Research | Destroyed Investigator 28495 | -3/Research | Destroyed 8 combat bots 28546 | -3/Research | Destroyed 12 combat bots 28599 | -3/Research | Discovered exit to Research (range 6) 28636 | -3/Research | Ambient heat levels rising (+10) 28638 | -3/Research | Entered Armory 28639 | -3/Armory | Loaded intel: 51 trap records 28640 | -3/Armory | Loaded intel: 14 terminal locations 28804 | -3/Armory | Unchained authorized (DW-4LL) 28829 | -3/Armory | Fabricated Diametric Drive? 28888 | -3/Armory | First assault squad dispatched 29009 | -3/Armory | DW-4LL burst out of a wall 29055 | -3/Armory | Fabricated Diametric Drive? 29111 | -3/Armory | DW-4LL burst out of a wall 29130 | -3/Armory | Spotted B-86 Titan 29156 | -3/Armory | Discovered exit to Research (range 3) 29177 | -3/Armory | Fabricated Diametric Drive? 29177 | -3/Armory | DW-4LL burst out of a wall 29204 | -3/Armory | Fabricated Diametric Drive? 29231 | -3/Armory | Fabricated Diametric Drive? 29247 | -3/Armory | Destroyed 18 combat bots 29251 | -3/Armory | Core integrity fell below 50% 29277 | -3/Armory | High security lockdown imminent 29339 | -3/Armory | Destroyed 24 combat bots 29357 | -3/Armory | High security lockdown engaged 29372 | -3/Armory | Destroyed DW-4LL 29416 | -3/Armory | Destroyed 7 combat bots 29482 | -3/Armory | Destroyed 10 combat bots 29516 | -3/Armory | Reached level 33 29593 | -3/Armory | Destroyed Armor Guard 29598 | -3/Armory | Destroyed Armor Guard 29609 | -3/Armory | Destroyed Armor Guard 29612 | -3/Armory | Build established: Machinist-Scout 29620 | -3/Armory | Destroyed Armor Guard 29670 | -3/Armory | Destroyed 28 combat bots 29846 | -3/Armory | Destroyed 23 combat bots 29855 | -3/Armory | Spotted Striker 29856 | -3/Armory | Spotted Investigator 29876 | -3/Armory | Destroyed Striker 29877 | -3/Armory | Sterilization system engaged 29877 | -3/Armory | Non-combat units ordered to evacuate 29906 | -3/Armory | Destroyed Investigator 29922 | -3/Armory | Destroyed 9 combat bots 29962 | -3/Armory | Destroyed B-86 Titan 29977 | -3/Armory | Combat units ordered to evacuate 30019 | -3/Armory | Destroyed Striker 30040 | -3/Armory | Destroyed 25 combat bots 30087 | -3/Armory | Discovered new exit (range 15) 30089 | -3/Armory | Identified exit to Lab 30098 | -3/Armory | Found Exp. Weapon Cycler 30108 | -3/Armory | Entered Lab 30108 | -3/Lab | Discovered exit to Research (range 10) 30110 | -3/Lab | Hidden lab's door opened automatically 30110 | -3/Lab | Sensor layout match revealed 30111 | -3/Lab | Gained access to the hidden lab's interior 30161 | -3/Lab | Found Alien Artifact 30161 | -3/Lab | Identified Core Regenerator 30161 | -3/Lab | Used Core Regenerator, restored core integrity (+0) 30163 | -3/Lab | Found Alien Artifact 30163 | -3/Lab | Identified Integrated Mediator 30163 | -3/Lab | Installed Integrated Mediator, increased core attachment efficiency 30172 | -3/Lab | Found Prototype Hackware 30172 | -3/Lab | Identified Deep Network Scanner 30195 | -3/Lab | Found Alien Artifact 30200 | -3/Lab | Entered Research 30293 | -2/Research | Unchained authorized (GL-D0S) 30378 | -2/Research | Fabricated Zero-point Reactor (x1) 30455 | -2/Research | Identified exit to Testing 30670 | -2/Research | Fabricated Zero-point Reactor? 30700 | -2/Research | First assault squad dispatched 30817 | -2/Research | Reached level 34 30931 | -2/Research | Discovered new exit (range 4) 30931 | -2/Research | Identified exit to Access 31055 | -2/Research | Fabricated Exp. Armor Integrity Analyzer (x1) 31153 | -2/Research | Destroyed 12 combat bots 31164 | -2/Research | Entered Testing 31164 | -2/Testing | Accompanied by 1 ally 31171 | -2/Testing | Identified Transdimensional Reconstructor 31241 | -2/Testing | Spotted Striker 31242 | -2/Testing | Spotted Striker 31400 | -2/Testing | Destroyed 8 combat bots 31461 | -2/Testing | Spotted Fortress 31488 | -2/Testing | Discovered new exit (range 5) 31488 | -2/Testing | Discovered new exit (range 6) 31489 | -2/Testing | Identified exit to Section 7 31489 | -2/Testing | Identified exit to Protoforge 31490 | -2/Testing | Entered Section 7 31526 | -2/Section 7 | Found Alien Artifact 31526 | -2/Section 7 | Identified Spacefold Activator 31567 | -2/Section 7 | Found Alien Artifact 31567 | -2/Section 7 | Identified Core Reset Matrix 31567 | -2/Section 7 | Used Core Reset Matrix 31571 | -2/Section 7 | Detected hypermatrix surge 31571 | -2/Section 7 | Sensed 13 artifacts in vicinity 31584 | -2/Section 7 | Discovered exit to Access (range 11) 31597 | -2/Section 7 | Found Integrated Dissipator 31597 | -2/Section 7 | Installed Integrated Dissipator, increased core heat dissipation (+20) 31607 | -2/Section 7 | Destroyed Executioner 31607 | -2/Section 7 | Destroyed Executioner 31617 | -2/Section 7 | Found Prototype Device 31617 | -2/Section 7 | Identified Adv. Kinecellerator 31619 | -2/Section 7 | Found Prototype Processor 31619 | -2/Section 7 | Identified Exp. Core Analyzer 31696 | -2/Section 7 | Destroyed Striker 31698 | -2/Section 7 | Destroyed Striker 31702 | -2/Section 7 | Destroyed Executioner 31706 | -2/Section 7 | Destroyed Executioner 31740 | -2/Section 7 | Spotted B-99 Colossus 31752 | -2/Section 7 | Found Core Expander 31752 | -2/Section 7 | Installed Core Expander, added new Weapon slot 31754 | -2/Section 7 | Found Core Expander 31754 | -2/Section 7 | Installed Core Expander, added new Weapon slot 31764 | -2/Section 7 | Found LRC Insulator 31764 | -2/Section 7 | Installed LRC Insulator, 1 resistance modified: EM +25% 31766 | -2/Section 7 | Found LRC Storage 31766 | -2/Section 7 | Installed LRC Storage, increased inventory capacity (+2) 31776 | -2/Section 7 | Found Integrated Dissipator 31776 | -2/Section 7 | Installed Integrated Dissipator, increased core heat dissipation (+20) 31835 | -2/Section 7 | Spotted Alpha 7 31837 | -2/Section 7 | Spotted Alpha 7 31851 | -2/Section 7 | Destroyed Alpha 7 31886 | -2/Section 7 | Destroyed Alpha 7 31962 | -2/Section 7 | Reached level 35 31972 | -2/Section 7 | Upgraded with Utility slot (x1) 32153 | -2/Section 7 | Entered Access 32362 | -1/Access | Unchained authorized (GL-D0S) 32386 | -1/Access | Identified exit to Command 32403 | -1/Access | First assault squad dispatched 32448 | -1/Access | Destroyed 7 combat bots 32460 | -1/Access | Reached level 36 32460 | -1/Access | High security lockdown imminent 32485 | -1/Access | Destroyed GL-D0S 32540 | -1/Access | High security lockdown engaged 32603 | -1/Access | Spotted B-99 Colossus 32603 | -1/Access | Spotted B-99 Colossus 32615 | -1/Access | Destroyed B-99 Colossus 32650 | -1/Access | Discovered new exit (range 4) 32650 | -1/Access | Energy Cycler disabled 32653 | -1/Access | Identified exit to Surface 32747 | -1/Access | Spotted B-99 Colossus 32810 | -1/Access | Destroyed 11 combat bots 32832 | -1/Access | Spotted B-99 Colossus 32849 | -1/Access | Destroyed B-99 Colossus 32872 | -1/Access | Spotted B-99 Colossus 32878 | -1/Access | Entered Command 32940 | -1/Command | Reached level 37 32964 | -1/Command | Disengaged cave seal 32981 | -1/Command | Spotted M Guard 32981 | -1/Command | Spotted M Guard 32981 | -1/Command | Spotted Combat Programmer 32981 | -1/Command | Spotted Combat Programmer 32988 | -1/Command | Met MAIN.C 32991 | -1/Command | 0b10 Conduit disabled 32998 | -1/Command | Destroyed Combat Programmer 33007 | -1/Command | Destroyed Combat Programmer 33011 | -1/Command | Core integrity fell below 50% 33012 | -1/Command | Emitted hypermatrix ping 33014 | -1/Command | High security lockdown imminent 33014 | -1/Command | Destroyed M Guard 33015 | -1/Command | Core integrity fell below 20% 33017 | -1/Command | Assembled emerged from beneath the floor 33024 | -1/Command | Destroyed M Guard 33024 | -1/Command | All MAIN.C guards destroyed 33051 | -1/Command | Lost 7 allies 33085 | -1/Command | Assembled emerged from beneath the floor 33094 | -1/Command | High security lockdown engaged 33107 | -1/Command | Assembled emerged from beneath the floor 33138 | -1/Command | Assembled emerged from beneath the floor 33181 | -1/Command | Assembled emerged from beneath the floor 33227 | -1/Command | Assembled emerged from beneath the floor 33259 | -1/Command | Phase Generator disabled 33320 | -1/Command | Assembled emerged from beneath the floor 33354 | -1/Command | Destroyed B-99 Colossus 33365 | -1/Command | Reached level 38 33425 | -1/Command | Spotted B-99 Colossus 33427 | -1/Command | Destroyed Striker 33427 | -1/Command | Destroyed Executioner 33427 | -1/Command | Destroyed Executioner 33429 | -1/Command | Spotted Alpha 7 33448 | -1/Command | Destroyed B-99 Colossus 33462 | -1/Command | Spotted Alpha 7 33462 | -1/Command | Spotted Executioner 33462 | -1/Command | Spotted Striker 33462 | -1/Command | Destroyed Striker 33462 | -1/Command | Destroyed Executioner 33468 | -1/Command | Destroyed Alpha 7 33519 | -1/Command | Lost 8 allies 33595 | -1/Command | Reached level 39 33621 | -1/Command | Destroyed 121 combat bots 33657 | -1/Command | Destroyed 15 combat bots 33671 | -1/Command | Lost 10 allies 33771 | -1/Command | Destroyed 57 combat bots 33843 | -1/Command | Destroyed 8 combat bots 33887 | -1/Command | Destroyed 51 combat bots 33933 | -1/Command | Destroyed 9 combat bots 34284 | -1/Command | Destroyed 12 combat bots 34384 | -1/Command | Upgraded with Power slot (x1) 34397 | -1/Command | Destroyed 12 combat bots 34490 | -1/Command | Destroyed 12 combat bots 34670 | -1/Command | Destroyed MAIN.C Shell 34673 | -1/Command | MAIN.C activated Command garrisons 34703 | -1/Command | Reached level 40 34703 | -1/Command | Destroyed MAIN.C 34710 | -1/Command | Discovered exit to Surface (range 81) 34710 | -1/Command | Discovered exit to Surface (range 59) 34710 | -1/Command | Extracted map data and part IDs from MAIN.C's data core 34711 | -1/Command | Found Zero-point Reactor 34949 | -1/Command | Destroyed B-99 Colossus 35009 | -1/Command | Warped through subspace to slip node 35009 | -1/Command | Discovered new exit (range 5) 35012 | -1/Command | Identified exit to Access_0 35012 | -1/Command | Entered Access_0 35013 | -1/Access_0 | Sensed 2 artifacts in vicinity 35013 | -1/Access_0 | Met Architect 35018 | -1/Access_0 | Destroyed 47 combat bots 35047 | -1/Access_0 | A6 warped into view 35068 | -1/Access_0 | Build established: Machinist-Sprinter 35084 | -1/Access_0 | Destroyed A6 35105 | -1/Access_0 | Subspace Access Node disabled 35127 | -1/Access_0 | A5 warped into view 35142 | -1/Access_0 | Destroyed A5 35241 | -1/Access_0 | A4 warped into view 35355 | -1/Access_0 | Destroyed A8 35360 | -1/Access_0 | Subspace Access Node disabled 35477 | -1/Access_0 | Subspace Access Node disabled 35497 | -1/Access_0 | Destroyed A4 35577 | -1/Access_0 | Destroyed 11 combat bots 35598 | -1/Access_0 | A3 warped into view 35674 | -1/Access_0 | Singularity Gate disabled 35704 | -1/Access_0 | Singularity Gate disabled 35732 | -1/Access_0 | Destroyed A3 35753 | -1/Access_0 | Destroyed 8 combat bots 35789 | -1/Access_0 | Subspace Access Node disabled 35900 | -1/Access_0 | Found Hpw. Transdimensional Reconstructor 35942 | -1/Access_0 | Destroyed A2 36029 | -1/Access_0 | Destroyed Architect 36034 | -1/Access_0 | Extracted unknown sensor trigger ID from Architect's data core 36035 | -1/Access_0 | Found Hpw. Transdimensional Reconstructor 36036 | -1/Access_0 | Found Prototype Hackware 36036 | -1/Access_0 | Identified Architect God Chip A 36038 | -1/Access_0 | Found Prototype Hackware 36038 | -1/Access_0 | Identified Architect God Chip D 36050 | -1/Access_0 | Found Zero-point Reactor 36112 | -1/Access_0 | Found Exp. Powered Armor 36118 | -1/Access_0 | Found Prototype Device 36118 | -1/Access_0 | Identified Desublimator 36129 | -1/Access_0 | Found Singularity Reactor 36135 | -1/Access_0 | Found Gui. Micro-nuke Launcher 36143 | -1/Access_0 | Found Point Singularity Launcher 36232 | -1/Access_0 | Extracted Singularity Gate Test 138-C access codes from A2's data core 36289 | -1/Access_0 | Found Sigix Corpse 36291 | -1/Access_0 | Warped through subspace to slip node 36291 | -1/Access_0 | Discovered exit to Surface (range 8) 36294 | *** | Heading to fleet! Last Messages --------------- [REDACTED] >>Record! "Log L.Y1U23ASU" [REDACTED] 36196_ Acquired 5 matter. 36232_ Acquired data core, extracted Singularity Gate Test 138-C access codes. 36286_ Particle Stream penetrates Machine. 36286_ Machine disabled. 36286_ Particle Stream penetrates Machine. 36286_ Machine disabled. 36286_ Particle Stream penetrates Wall. 36286_ Particle Stream penetrates Earth. 36287_ Particle Stream penetrates Analysis Chamber. 36287_ Analysis Chamber breached. 36287_ Particle Stream penetrates Analysis Chamber. 36287_ Particle Stream penetrates Wall. 36287_ Particle Stream penetrates Earth. 36289_ Acquired Sigix Corpse. 36291_ Warped through subspace, drawn to slip node. 36291_ EXIT=FOUND: SURFACE Map ----- +----------------------------------------------------+ | | | | | | | | | | | | | | | | | | | | | | | | | | | | | | | | | ?????????????????????????????????????????????????? | | ?????????????????????????????????????????????????? | | ?????????????????????????????????????????????????? | | ?????????????????????????????????????????????????? | | ?????????????????????????????????????????????????? | | ???????????????????????#####?????????????????????? | | ??????????????????????#######????????????????????? | | ??????????????????????### ###????????????????????? | | ??????????????????????## ##????????????????????? | | ?????????????????????### @ ##????????????????????? | | ?????????????????????### ##????????????????????? | | ?????????????????????## ##????????????????????? | | ?????????????????????## ###????????????????????? | | ?????????????????????### ##????????????????????? | | ?????????????????????## ##????????????????????? | | ?????????????????????## ###????????????????????? | | ?????????????????????## < ##????????????????????? | | ?????????????????????## ###????????????????????? | | ?????????????????????### ###????????????????????? | | ?????????????????????#######?????????????????????? | | ??????????????????????######?????????????????????? | | ?????????????????????????????????????????????????? | | ?????????????????????????????????????????????????? | | ?????????????????????????????????????????????????? | | ?????????????????????????????????????????????????? | | ?????????????????????????????????????????????????? | | ?????????????????????????????????????????????????? | | ?????????????????????????????????????????????????? | | ?????????????????????????????????????????????????? | | ?????????????????????????????????????????????????? | | ?????????????????????????????????????????????????? | | ????????????????????? ???????????????????????????? | | ????????????????????? ???????????????????????????? | | ????????????????????? ???????????????????????????? | +----------------------------------------------------+ Best States ------------- Heat Dissipation 167 Energy Generation 114 Energy Capacity 2100 Matter Stores 300 Matter Capacity 350 Sight Range 16 Robot Scan Range 35 Terrain Scan Density 10 ECM Strength 2 Jamming Range 12 Additional Mass Support 20 Corruption Containment 12 Corruption Block 15 Armor Coverage 1200 Resistance: KI 20 Resistance: TH 20 Resistance: EX 15 Resistance: EM 25 Resistance: I 15 Resistance: S 15 Resistance: P 15 Weapon Cycling 30 Phase Shifting 20 Evasion (%) 100 Targeting Accuracy 20 Target Analysis 6 Core Analysis 8 Armor Integrity Analysis 50 Energy Filtering 50 Particle Charging 50 Kinecelleration 50 Offensive Hacking 135 Defensive Hacking 105 Item Schematics ----------------- Cld. Linear Gravjet | -2/Section 7 | Archive Cld. Antimatter Reactor | -2/Section 7 | Archive Helical Railgun | -2/Section 7 | Archive Lgt. Antimatter Cannon | -2/Section 7 | Archive System Purifier | -2/Section 7 | Archive Prc. Energy Filter | -2/Section 7 | Archive Quantum Shading Machine | -2/Section 7 | Archive Exp. Melee Analysis Suite | -2/Section 7 | Archive Molecular Scythe | -2/Section 7 | Archive Hvy. Gatling Laser | -2/Section 7 | Archive Hvy. Dispersion Rifle | -2/Section 7 | Archive Cld. Gravmag System | -2/Section 7 | Archive Centrium Heavy Treads | -2/Section 7 | Archive Exp. Biometal Medium Treads | -2/Section 7 | Archive Enh. Multireflex Exoskeleton | -2/Section 7 | Archive Hvy. Tesla Rifle | -2/Section 7 | Archive Point Singularity Launcher | -2/Section 7 | Archive Exp. Heat Sink | -2/Section 7 | Archive Robot Schematics ------------------ L-61 Swordsman | -2/Section 7 | Archive R-10 Processor | -2/Section 7 | Archive A-15 Conveyor | -2/Section 7 | Archive T-07 Excavator | -2/Section 7 | Archive M-30 Cleanser | -2/Section 7 | Archive A-27 Freighter | -2/Section 7 | Archive G-73 Enforcer | -2/Section 7 | Archive B-74 Champion | -2/Section 7 | Archive K-01 Serf | -2/Section 7 | Archive Fabricated ------------ Hyp. Gauss Cannon | x2 | -6/Factory Cld. Cesium-ion Thruster | x1 | -6/Factory Cld. Cesium-ion Thruster | x1 | -6/Factory Hyp. Alpha Cannon | x1 | -5/Factory Hyp. Alpha Cannon | x1 | -5/Factory Hyp. Alpha Cannon | x1 | -5/Factory Hyp. Alpha Cannon | x1 | -5/Factory Lgt. Fission Core | x2 | -5/Factory Adv. Particle Accelerator | x1 | -4/Factory | Preloaded Impulse Thruster Array | x1 | -4/Factory Impulse Thruster Array | x1 | -4/Factory Diametric Drive | x1 | -3/Research Diametric Drive | x1 | -3/Armory Diametric Drive | x1 | -3/Armory Diametric Drive | x1 | -3/Armory Diametric Drive | x1 | -3/Armory Diametric Drive | x1 | -3/Armory Zero-point Reactor | x1 | -2/Research Zero-point Reactor | x1 | -2/Research Exp. Armor Integrity Analyzer | x1 | -2/Research Repaired ---------- Cld. Cesium-ion Thruster | 99% | -6/Factory | Broken Studied --------- None Alien Tech Used ----------------- Core Regenerator Integrated Mediator Spacefold Activator Core Reset Matrix Integrated Dissipator Core Expander LRC Insulator LRC Storage Transdimensional Reconstructor High-powered Transdimensional Reconstructor Achievements -------------- Behind The Curtain Serial Killer Speed Demon Supersonic Suspicious The Bigger They Are Traitor l33t h4x0r Challenges ------------ None RPGLIKE | -11 -10 -9 -9 -9 -9 -6 -6 -6 -6 -6 -5 -5 -5 -5 -5 -5 -5 -4 -4 -4 -4 -4 -4 -3 -3 -3 -2 -2 -2 -1 -1 -1 --------- Run | Yrd Mat Mat Sto Rec Scr Fac Low Low Zio Dee Pro Fac Was Fac Upp Upp War Pro Fac Ext Cet Arc Hub Res Arm Lab Res Tes Sec Acc Com Ac0 Levels Raised 39 | . 3 5 2 1 . 9 . . . . 1 1 1 2 . . 1 . 2 1 . . . 2 1 . 1 . 1 1 4 . XP Earned 62375 | 3000 4517 8112 3113 817 166 13479 313 288 82 247 1262 2076 46 3302 257 157 1501 714 2768 369 91 49 847 2593 1260 257 1108 349 918 2408 5293 616 XP Spent 61425 | 2650 1600 10735 1420 . 2750 10840 1100 1905 . . 1300 . . 5995 . . 1000 . 3500 . . 1600 . 3100 . . . . 3800 1050 5575 1505 Upgrades 103 | 6 2 22 4 . 2 16 1 6 . . 2 . . 10 . . 1 . 1 . . 1 . 6 . . . . 1 1 14 7 Power Slot 2 | . . . . . . . . . . . 1 . . . . . . . . . . . . . . . . . . . 1 . Propulsion Slot 4 | 1 1 2 . . . . . . . . . . . . . . . . . . . . . . . . . . . . . . Utility Slot 12 | 1 1 3 . . 1 3 . . . . . . . 1 . . . . 1 . . . . . . . . . 1 . . . Weapon Slot 2 | 2 . . . . . . . . . . . . . . . . . . . . . . . . . . . . . . . . Core Integrity 23 | . . 4 . . . . . 1 . . . . . . . . . . . . . . . . . . . . . . 11 7 Heat Dissipation 17 | . . 5 2 . . 1 . 2 . . . . . 7 . . . . . . . . . . . . . . . . . . Energy Generation 5 | . . 1 . . . 1 . . . . 1 . . . . . . . . . . . . . . . . . . 1 1 . Mass Support 5 | 1 . . 1 . . . 1 . . . . . . . . . . . . . . 1 . . . . . . . . 1 . Inventory Capacity 4 | 1 . . 1 . 1 . . . . . . . . . . . 1 . . . . . . . . . . . . . . . Sensor Range 12 | . . 2 . . . 8 . . . . . . . 2 . . . . . . . . . . . . . . . . . . Ranged Accuracy 6 | . . 5 . . . . . 1 . . . . . . . . . . . . . . . . . . . . . . . . Hack Attack % 2 | . . . . . . 2 . . . . . . . . . . . . . . . . . . . . . . . . . . Hack Defense % 1 | . . . . . . 1 . . . . . . . . . . . . . . . . . . . . . . . . . . KI Resistance % 4 | . . . . . . . . . . . . . . . . . . . . . . . . 4 . . . . . . . . TH Resistance % 4 | . . . . . . . . 2 . . . . . . . . . . . . . . . 2 . . . . . . . . Protomatter Created 42547 | . 358 422 627 51 440 2161 320 108 28 196 664 453 517 2581 520 361 5358 671 3016 905 179 149 2828 3709 3517 . 861 66 669 1129 8505 1178 Integrity Restored 29409 | . 451 1108 645 76 317 4002 607 245 . 564 681 1119 122 2631 . 33 779 7 2088 177 . . 1431 2116 1686 . 297 . 238 844 3525 3620 Core 24188 | . 319 947 417 59 289 3458 291 146 . 440 562 876 92 2107 . 29 659 . 1680 142 . . 1146 1752 1301 . 227 . 188 674 2835 3552 Parts 5221 | . 132 161 228 17 28 544 316 99 . 124 119 243 30 524 . 4 120 7 408 35 . . 285 364 385 . 70 . 50 170 690 68 Protomatter Decayed 30649 | . 304 1 296 24 5438 816 114 . . . 238 164 87 1180 520 328 4550 676 1898 410 113 . 2206 2324 2028 . 663 66 457 603 4986 159 Game ------ Seed GlidesysTachyonWall Manual? 0 Play Time 11:59:41 Cumulative 217.5 hours Start 2025.11.22 @ 15:45:42 End 2025.11.23 @ 18:50:03 Sessions 3 Manual Loads 0 Difficulty Rogue Special Mode Winter2019/RPGLIKE Game No. 66 Rogue 66 Adventurer 0 Explorer 0 Win Type 2 Total 8 Types 2/1/2/3/0/0/0/0/0/0 Lore% 65 Gallery% 61 Achievement% 61 Wizard Run 0 Options --------- Layout 2 ASCII 0 Keyboard 0 Movement Mouse Keybinds 1 Fullscreen 2 Font 20/X11 Map View 64x51 Zoom Use 0% Tactical HUD 1 Map Filters NONE Filters NONE Steam 1 RUN: b9ca0d9f-759e-4fcc-82eb-181d3688e09a